Workbook

Sheet INTRO
B2: Joint request for selected PC medicines v.3
B4: As part of global efforts to accelerate expansion of preventive chemotherapy (PC) for control and elimination of lymphatic filariasis, schistosomiasis and soil-transmitted helminthiases, the World Health Organization (WHO) facilitates the supply of albendazole 400 mg tablets (GSK) to national lymphatic filariasis elimination programmes and national soil-transmitted helminth control programmes; diethylcarbamazine citrate 100 mg tablets (Eisai) to national lymphatic filariasis elimination programmes; mebendazole 500 mg tablets (J&J) for national soil-transmitted helminth control programmes; and praziquantel 600 mg tablets (Merck KGaA) for school-age children to national schistosomiasis control programmes. WHO also collaborates to supply ivermectin 3 mg tablets (Merck) for onchocerciasis and lymphatic filariasis donation programmes. This Excel-based tool is designed to assist countries in quantifying the number of tablets of relevant PC medicines required to reach the planned target population and districts for the year of request. Output of the tool is a joint request for PC medicines, which can be printed, signed and submitted to WHO to request these medicines.
B6: Structure of the application (worksheets):
B8: INTRO | C8: This worksheet includes guides on how to complete the joint request for selected PC medicines and information about the status of PC for endemic diseases in the country.
B9: COUNTRY_INFO | C9: This worksheet includes information about administrative structure of the country, population by age group, status of endemicity for each disease, population requiring PC and planned interventions.
B10: DEC, ALB_MBD, PZQ and IVM | C10: These worksheets include information about endemic districts targeted for treatment with specified PC medicines, treatment plan, and number of tablets required and requested.
B11: SUMMARY | C11: This worksheet includes summary of number of tablets requested, information about stock, and date for submission of requested medicines. Before generating the report (run macros) please select the medicine for which the report is needed. Follow the same rule to see the number of people to be treated for the specific disease. This worksheet should be printed and submitted as a joint request for selected PC medicines (see the instruction for submission in the SUMMARY worksheet).
B13: Instruction for data entry
B15: Most of the cells in the above-mentioned worksheets include formula that are calculated automatically according to the treatment policy recommended by WHO for each disease. See the link http://www.who.int/neglected_diseases/preventive_chemotherapy/pct_manual/en/index.html
B17: Please enter your data into the cells according to their colour code:
C19: White - cell is not protected. Please enter the value of the requested indicator.
C21: Yellow - cell is protected and includes name of indicator. No data entry required.
C23: Orange - cell is not protected and includes a drop-down menu. Please select the value from the drop-down list.
C26: Green - cell is not protected and includes formula. Please change the value only if your data are different from those that are calculated automatically.
C29: Blue - cell is protected and includes formula. No data entry required.
B31: Country data
B33: COUNTRY | E33: STP
B35: Year for request of the medicine | E35: 2020
B37: Is country endemic for lymphatic filariasis (LF)? | E37: Endemic
B39: Is country endemic for onchocerciasis (ONCHO)? | E39: Non-endemic
B41: Is country endemic for soil-transmitted helminthiases (STH)? | E41: Endemic
B43: Is country endemic for schistosomiasis (SCH)? | E43: Endemic
B45: How many administrative units in the country? | E45: 7
B47: If demographical data at the second administrative level are not available by age group, please enter the proportion (%) of population by age group in the country. If data are available, please leave these cells blank.
B48: 1-4 years age | C48: Preschool-age children (PreSAC) | E48: 0.123
B49: 5-14 years age | C49: School-age children (SAC) | E49: 0.262
B50: 15 years + | C50: Adults | E50: 0.583

Sheet COUNTRY_INFO
A1: COUNTRY INFORMATION
A2: Administrative structure, population by age group, status of endemicity and planned interventions
A4: TOTAL | D4: =SUM(D$9:D$1000) -> 210238 | E4: =SUM(E$9:E$1000) -> 25859 | F4: =SUM(F$9:F$1000) -> 55082 | G4: =SUM(G$9:G$1000) -> 122569 | L4: =SUM(L$9:L$1000) -> 210238 | M4: =SUM(M$9:M$1000) -> 0 | N4: =SUM(N$9:N$1000) -> 80941 | O4: =SUM(O$9:O$1000) -> 39697.93
A6: Country administrative structure | D6: Population | H6: Endemicity | L6: Population requiring PC | P6: Number of treatment rounds planned for the year | T6: Criteria to apply for IVM+DEC+ALB therapy | U6: Epidemiological surveys planned for the year
A7: Country | B7: Province/State | C7: District | D7: Total | E7: PreSAC | F7: SAC | G7: Adults | H7: LF | I7: Oncho | J7: STH | K7: SCH | L7: LF | M7: Oncho | N7: STH | O7: SCH | P7: LF | Q7: Oncho | R7: STH | S7: SCH | T7: LF | U7: LF | V7: Oncho | W7: STH | X7: SCH | Y7: IU_ID | Z7: IU_Name
A9: =IF(INTRO!$E$33<>0,INTRO!$E$33, " ") -> STP | B9: Sao Tome | C9: Agua Grande | D9: 80689 | E9: =IF(INTRO!$E$48="","",ROUND($D9*INTRO!$E$48,0)) -> 9925 | F9: =IF(INTRO!$E$49="","",ROUND($D9*INTRO!$E$49,0)) -> 21141 | G9: =IF(INTRO!$E$50="","",ROUND($D9*INTRO!$E$50,0)) -> 47042 | H9: 1 | J9: 3 | K9: 2 | L9: =IF(INTRO!$E$37="Endemic",IF($H9>0,IF($H9=4,"Unknown",IF($H9=99,"Stopped",$D9)),0),"Not required") -> 80689 | M9: =IF(INTRO!$E$39="Endemic", IF($I9>0, IF($I9=4,"Unknown",IF($I9=99,"Stopped",$D9)), 0),"Not required") -> Not required | N9: =IF(INTRO!$E$41="Endemic", IF(AND($J9>1,$J9<5), IF($J9=4, "Unknown", E9+F9), 0),"Not required") -> 31066 | O9: =IF(INTRO!$E$43="Endemic", IF(AND($K9>0,$K9<5), IF($K9=4,"Unknown", IF($K9=1, $F9*0.33, IF($K9=2, $F9*0.5+$G9*0.2, SUM(F9:G9)))), 0),"Not required") -> 19978.9 | P9: 1 | R9: 2 | S9: 0 | T9: Starting late: <4 MDA rounds | U9: SS/SC | W9: Yes | X9: Yes | Y9: 39143 | Z9: Agua Grande
A10: =IF(INTRO!$E$33<>0,INTRO!$E$33, " ") -> STP | B10: Sao Tome | C10: Me-zochi | D10: 52864 | E10: =IF(INTRO!$E$48="","",ROUND($D10*INTRO!$E$48,0)) -> 6502 | F10: =IF(INTRO!$E$49="","",ROUND($D10*INTRO!$E$49,0)) -> 13850 | G10: =IF(INTRO!$E$50="","",ROUND($D10*INTRO!$E$50,0)) -> 30820 | H10: 1 | J10: 3 | K10: 2 | L10: =IF(INTRO!$E$37="Endemic",IF($H10>0,IF($H10=4,"Unknown",IF($H10=99,"Stopped",$D10)),0),"Not required") -> 52864 | M10: =IF(INTRO!$E$39="Endemic", IF($I10>0, IF($I10=4,"Unknown",IF($I10=99,"Stopped",$D10)), 0),"Not required") -> Not required | N10: =IF(INTRO!$E$41="Endemic", IF(AND($J10>1,$J10<5), IF($J10=4, "Unknown", E10+F10), 0),"Not required") -> 20352 | O10: =IF(INTRO!$E$43="Endemic", IF(AND($K10>0,$K10<5), IF($K10=4,"Unknown", IF($K10=1, $F10*0.33, IF($K10=2, $F10*0.5+$G10*0.2, SUM(F10:G10)))), 0),"Not required") -> 13089 | P10: 1 | R10: 2 | S10: 0 | T10: Starting late: <4 MDA rounds | U10: SS/SC | W10: Yes | X10: Yes | Y10: 39148 | Z10: Me-zochi
A11: =IF(INTRO!$E$33<>0,INTRO!$E$33, " ") -> STP | B11: Sao Tome | C11: Lobata | D11: 23340 | E11: =IF(INTRO!$E$48="","",ROUND($D11*INTRO!$E$48,0)) -> 2871 | F11: =IF(INTRO!$E$49="","",ROUND($D11*INTRO!$E$49,0)) -> 6115 | G11: =IF(INTRO!$E$50="","",ROUND($D11*INTRO!$E$50,0)) -> 13607 | H11: 1 | J11: 3 | K11: 1 | L11: =IF(INTRO!$E$37="Endemic",IF($H11>0,IF($H11=4,"Unknown",IF($H11=99,"Stopped",$D11)),0),"Not required") -> 23340 | M11: =IF(INTRO!$E$39="Endemic", IF($I11>0, IF($I11=4,"Unknown",IF($I11=99,"Stopped",$D11)), 0),"Not required") -> Not required | N11: =IF(INTRO!$E$41="Endemic", IF(AND($J11>1,$J11<5), IF($J11=4, "Unknown", E11+F11), 0),"Not required") -> 8986 | O11: =IF(INTRO!$E$43="Endemic", IF(AND($K11>0,$K11<5), IF($K11=4,"Unknown", IF($K11=1, $F11*0.33, IF($K11=2, $F11*0.5+$G11*0.2, SUM(F11:G11)))), 0),"Not required") -> 2017.95 | P11: 1 | R11: 2 | S11: 1 | T11: Starting late: <4 MDA rounds | U11: SS/SC | W11: Yes | X11: Yes | Y11: 39147 | Z11: Lobata
A12: =IF(INTRO!$E$33<>0,INTRO!$E$33, " ") -> STP | B12: Sao Tome | C12: Cantagalo | D12: 20164 | E12: =IF(INTRO!$E$48="","",ROUND($D12*INTRO!$E$48,0)) -> 2480 | F12: =IF(INTRO!$E$49="","",ROUND($D12*INTRO!$E$49,0)) -> 5283 | G12: =IF(INTRO!$E$50="","",ROUND($D12*INTRO!$E$50,0)) -> 11756 | H12: 1 | J12: 3 | K12: 1 | L12: =IF(INTRO!$E$37="Endemic",IF($H12>0,IF($H12=4,"Unknown",IF($H12=99,"Stopped",$D12)),0),"Not required") -> 20164 | M12: =IF(INTRO!$E$39="Endemic", IF($I12>0, IF($I12=4,"Unknown",IF($I12=99,"Stopped",$D12)), 0),"Not required") -> Not required | N12: =IF(INTRO!$E$41="Endemic", IF(AND($J12>1,$J12<5), IF($J12=4, "Unknown", E12+F12), 0),"Not required") -> 7763 | O12: =IF(INTRO!$E$43="Endemic", IF(AND($K12>0,$K12<5), IF($K12=4,"Unknown", IF($K12=1, $F12*0.33, IF($K12=2, $F12*0.5+$G12*0.2, SUM(F12:G12)))), 0),"Not required") -> 1743.39 | P12: 1 | R12: 2 | S12: 1 | T12: Starting late: <4 MDA rounds | U12: SS/SC | W12: Yes | X12: Yes | Y12: 39144 | Z12: Cantagalo
A13: =IF(INTRO!$E$33<>0,INTRO!$E$33, " ") -> STP | B13: Sao Tome | C13: Lemba | D13: 16887 | E13: =IF(INTRO!$E$48="","",ROUND($D13*INTRO!$E$48,0)) -> 2077 | F13: =IF(INTRO!$E$49="","",ROUND($D13*INTRO!$E$49,0)) -> 4424 | G13: =IF(INTRO!$E$50="","",ROUND($D13*INTRO!$E$50,0)) -> 9845 | H13: 1 | J13: 3 | K13: 1 | L13: =IF(INTRO!$E$37="Endemic",IF($H13>0,IF($H13=4,"Unknown",IF($H13=99,"Stopped",$D13)),0),"Not required") -> 16887 | M13: =IF(INTRO!$E$39="Endemic", IF($I13>0, IF($I13=4,"Unknown",IF($I13=99,"Stopped",$D13)), 0),"Not required") -> Not required | N13: =IF(INTRO!$E$41="Endemic", IF(AND($J13>1,$J13<5), IF($J13=4, "Unknown", E13+F13), 0),"Not required") -> 6501 | O13: =IF(INTRO!$E$43="Endemic", IF(AND($K13>0,$K13<5), IF($K13=4,"Unknown", IF($K13=1, $F13*0.33, IF($K13=2, $F13*0.5+$G13*0.2, SUM(F13:G13)))), 0),"Not required") -> 1459.92 | P13: 1 | R13: 2 | S13: 1 | T13: Starting late: <4 MDA rounds | U13: SS/SC | W13: Yes | X13: Yes | Y13: 39146 | Z13: Lemba
A14: =IF(INTRO!$E$33<>0,INTRO!$E$33, " ") -> STP | B14: Sao Tome | C14: Cauè | D14: 7527 | E14: =IF(INTRO!$E$48="","",ROUND($D14*INTRO!$E$48,0)) -> 926 | F14: =IF(INTRO!$E$49="","",ROUND($D14*INTRO!$E$49,0)) -> 1972 | G14: =IF(INTRO!$E$50="","",ROUND($D14*INTRO!$E$50,0)) -> 4388 | H14: 1 | J14: 3 | K14: 1 | L14: =IF(INTRO!$E$37="Endemic",IF($H14>0,IF($H14=4,"Unknown",IF($H14=99,"Stopped",$D14)),0),"Not required") -> 7527 | M14: =IF(INTRO!$E$39="Endemic", IF($I14>0, IF($I14=4,"Unknown",IF($I14=99,"Stopped",$D14)), 0),"Not required") -> Not required | N14: =IF(INTRO!$E$41="Endemic", IF(AND($J14>1,$J14<5), IF($J14=4, "Unknown", E14+F14), 0),"Not required") -> 2898 | O14: =IF(INTRO!$E$43="Endemic", IF(AND($K14>0,$K14<5), IF($K14=4,"Unknown", IF($K14=1, $F14*0.33, IF($K14=2, $F14*0.5+$G14*0.2, SUM(F14:G14)))), 0),"Not required") -> 650.76 | P14: 1 | R14: 2 | S14: 1 | T14: Starting late: <4 MDA rounds | U14: SS/SC | W14: Yes | X14: Yes | Y14: 39145 | Z14: Cauè
A15: =IF(INTRO!$E$33<>0,INTRO!$E$33, " ") -> STP | B15: Principe | C15: Píncipe | D15: 8767 | E15: =IF(INTRO!$E$48="","",ROUND($D15*INTRO!$E$48,0)) -> 1078 | F15: =IF(INTRO!$E$49="","",ROUND($D15*INTRO!$E$49,0)) -> 2297 | G15: =IF(INTRO!$E$50="","",ROUND($D15*INTRO!$E$50,0)) -> 5111 | H15: 1 | J15: 3 | K15: 1 | L15: =IF(INTRO!$E$37="Endemic",IF($H15>0,IF($H15=4,"Unknown",IF($H15=99,"Stopped",$D15)),0),"Not required") -> 8767 | M15: =IF(INTRO!$E$39="Endemic", IF($I15>0, IF($I15=4,"Unknown",IF($I15=99,"Stopped",$D15)), 0),"Not required") -> Not required | N15: =IF(INTRO!$E$41="Endemic", IF(AND($J15>1,$J15<5), IF($J15=4, "Unknown", E15+F15), 0),"Not required") -> 3375 | O15: =IF(INTRO!$E$43="Endemic", IF(AND($K15>0,$K15<5), IF($K15=4,"Unknown", IF($K15=1, $F15*0.33, IF($K15=2, $F15*0.5+$G15*0.2, SUM(F15:G15)))), 0),"Not required") -> 758.01 | P15: 1 | R15: 2 | S15: 1 | T15: Starting late: <4 MDA rounds | U15: SS/SC | W15: Yes | X15: Yes | Y15: 39142 | Z15: Píncipe

Sheet DEC
A1: Diethylcarbamazine citrate (DEC)
A2: Administrative structure, eligible population by age group, treatment plan and information about tablets
A4: TOTAL | D4: =SUM(D$9:D$1000) -> 25859 | E4: =SUM(E$9:E$1000) -> 55082 | F4: =SUM(F$9:F$1000) -> 122569 | G4: =SUM(G$9:G$1000) -> 203510 | I4: =SUM(I$9:I$1000) -> 203510 | J4: =SUM(J$9:J$1000) -> 508775 | K4: =SUM(K$9:K$1000) -> 108199 | L4: =SUM(L$9:L$1000) -> 400576 | M4: =SUM(M$9:M$1000) -> 512
A6: Country administrative structure | D6: Population requiring treatment with DEC | H6: Treatment plan | I6: Target population | J6: Diethylcarbamazine citrate (DEC)
A7: Country | B7: Province/State | C7: District | D7: PreSAC | E7: SAC | F7: Adults | G7: Total | H7: LF | I7: LF | J7: Total required | K7: Remaining in stock | L7: Tablets to be procured | M7: Bottle (100 mg) 1000 tablets
A9: =IF(INTRO!$E$39<>"Non-endemic", " ", IF(INTRO!$E$37="Non-endemic"," ", IF(COUNTRY_INFO!A9=0," ",COUNTRY_INFO!A9))) -> STP | B9: =IF(INTRO!$E$39<>"Non-endemic", " ", IF(INTRO!$E$37="Non-endemic"," ", IF(COUNTRY_INFO!B9=0," ",COUNTRY_INFO!B9))) -> Sao Tome | C9: =IF(INTRO!$E$39<>"Non-endemic", " ", IF(INTRO!$E$37="Non-endemic"," ", IF(COUNTRY_INFO!C9=0," ",COUNTRY_INFO!C9))) -> Agua Grande | D9: =IF(INTRO!$E$39<>"Non-endemic", 0, IF(INTRO!$E$37="Non-endemic",0,IF(COUNTRY_INFO!$H9=1,COUNTRY_INFO!E9,0))) -> 9925 | E9: =IF(INTRO!$E$39<>"Non-endemic", 0, IF(INTRO!$E$37="Non-endemic",0,IF(COUNTRY_INFO!$H9=1,COUNTRY_INFO!F9,0))) -> 21141 | F9: =IF(INTRO!$E$39<>"Non-endemic", 0, IF(INTRO!$E$37="Non-endemic",0,IF(COUNTRY_INFO!$H9=1,COUNTRY_INFO!G9,0))) -> 47042 | G9: =SUM(D9:F9) -> 78108 | H9: =IF(INTRO!$E$39="Non-endemic",IF(INTRO!$E$37="Non-endemic","Not required",COUNTRY_INFO!P9),"Treat with IVM") -> 1 | I9: =IF(H9=1,G9,0) -> 78108 | J9: =IF(I9>0,I9*2.5,0) -> 195270 | K9: 55199 | L9: =IF($J9>$K9,$J9-$K9,0) -> 140071 | M9: =ROUNDUP($J9/1000,0) -> 196
A10: =IF(INTRO!$E$39<>"Non-endemic", " ", IF(INTRO!$E$37="Non-endemic"," ", IF(COUNTRY_INFO!A10=0," ",COUNTRY_INFO!A10))) -> STP | B10: =IF(INTRO!$E$39<>"Non-endemic", " ", IF(INTRO!$E$37="Non-endemic"," ", IF(COUNTRY_INFO!B10=0," ",COUNTRY_INFO!B10))) -> Sao Tome | C10: =IF(INTRO!$E$39<>"Non-endemic", " ", IF(INTRO!$E$37="Non-endemic"," ", IF(COUNTRY_INFO!C10=0," ",COUNTRY_INFO!C10))) -> Me-zochi | D10: =IF(INTRO!$E$39<>"Non-endemic", 0, IF(INTRO!$E$37="Non-endemic",0,IF(COUNTRY_INFO!$H10=1,COUNTRY_INFO!E10,0))) -> 6502 | E10: =IF(INTRO!$E$39<>"Non-endemic", 0, IF(INTRO!$E$37="Non-endemic",0,IF(COUNTRY_INFO!$H10=1,COUNTRY_INFO!F10,0))) -> 13850 | F10: =IF(INTRO!$E$39<>"Non-endemic", 0, IF(INTRO!$E$37="Non-endemic",0,IF(COUNTRY_INFO!$H10=1,COUNTRY_INFO!G10,0))) -> 30820 | G10: 51172 | H10: =IF(INTRO!$E$39="Non-endemic",IF(INTRO!$E$37="Non-endemic","Not required",COUNTRY_INFO!P10),"Treat with IVM") -> 1 | I10: 51172 | J10: 127930 | K10: 23000 | L10: 104930 | M10: 128
A11: =IF(INTRO!$E$39<>"Non-endemic", " ", IF(INTRO!$E$37="Non-endemic"," ", IF(COUNTRY_INFO!A11=0," ",COUNTRY_INFO!A11))) -> STP | B11: =IF(INTRO!$E$39<>"Non-endemic", " ", IF(INTRO!$E$37="Non-endemic"," ", IF(COUNTRY_INFO!B11=0," ",COUNTRY_INFO!B11))) -> Sao Tome | C11: =IF(INTRO!$E$39<>"Non-endemic", " ", IF(INTRO!$E$37="Non-endemic"," ", IF(COUNTRY_INFO!C11=0," ",COUNTRY_INFO!C11))) -> Lobata | D11: =IF(INTRO!$E$39<>"Non-endemic", 0, IF(INTRO!$E$37="Non-endemic",0,IF(COUNTRY_INFO!$H11=1,COUNTRY_INFO!E11,0))) -> 2871 | E11: =IF(INTRO!$E$39<>"Non-endemic", 0, IF(INTRO!$E$37="Non-endemic",0,IF(COUNTRY_INFO!$H11=1,COUNTRY_INFO!F11,0))) -> 6115 | F11: =IF(INTRO!$E$39<>"Non-endemic", 0, IF(INTRO!$E$37="Non-endemic",0,IF(COUNTRY_INFO!$H11=1,COUNTRY_INFO!G11,0))) -> 13607 | G11: 22593 | H11: =IF(INTRO!$E$39="Non-endemic",IF(INTRO!$E$37="Non-endemic","Not required",COUNTRY_INFO!P11),"Treat with IVM") -> 1 | I11: 22593 | J11: 56482.5 | K11: 7519 | L11: 48963.5 | M11: 57
A12: =IF(INTRO!$E$39<>"Non-endemic", " ", IF(INTRO!$E$37="Non-endemic"," ", IF(COUNTRY_INFO!A12=0," ",COUNTRY_INFO!A12))) -> STP | B12: =IF(INTRO!$E$39<>"Non-endemic", " ", IF(INTRO!$E$37="Non-endemic"," ", IF(COUNTRY_INFO!B12=0," ",COUNTRY_INFO!B12))) -> Sao Tome | C12: =IF(INTRO!$E$39<>"Non-endemic", " ", IF(INTRO!$E$37="Non-endemic"," ", IF(COUNTRY_INFO!C12=0," ",COUNTRY_INFO!C12))) -> Cantagalo | D12: =IF(INTRO!$E$39<>"Non-endemic", 0, IF(INTRO!$E$37="Non-endemic",0,IF(COUNTRY_INFO!$H12=1,COUNTRY_INFO!E12,0))) -> 2480 | E12: =IF(INTRO!$E$39<>"Non-endemic", 0, IF(INTRO!$E$37="Non-endemic",0,IF(COUNTRY_INFO!$H12=1,COUNTRY_INFO!F12,0))) -> 5283 | F12: =IF(INTRO!$E$39<>"Non-endemic", 0, IF(INTRO!$E$37="Non-endemic",0,IF(COUNTRY_INFO!$H12=1,COUNTRY_INFO!G12,0))) -> 11756 | G12: 19519 | H12: =IF(INTRO!$E$39="Non-endemic",IF(INTRO!$E$37="Non-endemic","Not required",COUNTRY_INFO!P12),"Treat with IVM") -> 1 | I12: 19519 | J12: 48797.5 | K12: 11787 | L12: 37010.5 | M12: 49
A13: =IF(INTRO!$E$39<>"Non-endemic", " ", IF(INTRO!$E$37="Non-endemic"," ", IF(COUNTRY_INFO!A13=0," ",COUNTRY_INFO!A13))) -> STP | B13: =IF(INTRO!$E$39<>"Non-endemic", " ", IF(INTRO!$E$37="Non-endemic"," ", IF(COUNTRY_INFO!B13=0," ",COUNTRY_INFO!B13))) -> Sao Tome | C13: =IF(INTRO!$E$39<>"Non-endemic", " ", IF(INTRO!$E$37="Non-endemic"," ", IF(COUNTRY_INFO!C13=0," ",COUNTRY_INFO!C13))) -> Lemba | D13: =IF(INTRO!$E$39<>"Non-endemic", 0, IF(INTRO!$E$37="Non-endemic",0,IF(COUNTRY_INFO!$H13=1,COUNTRY_INFO!E13,0))) -> 2077 | E13: =IF(INTRO!$E$39<>"Non-endemic", 0, IF(INTRO!$E$37="Non-endemic",0,IF(COUNTRY_INFO!$H13=1,COUNTRY_INFO!F13,0))) -> 4424 | F13: =IF(INTRO!$E$39<>"Non-endemic", 0, IF(INTRO!$E$37="Non-endemic",0,IF(COUNTRY_INFO!$H13=1,COUNTRY_INFO!G13,0))) -> 9845 | G13: 16346 | H13: =IF(INTRO!$E$39="Non-endemic",IF(INTRO!$E$37="Non-endemic","Not required",COUNTRY_INFO!P13),"Treat with IVM") -> 1 | I13: 16346 | J13: 40865 | K13: 7855 | L13: 33010 | M13: 41
A14: =IF(INTRO!$E$39<>"Non-endemic", " ", IF(INTRO!$E$37="Non-endemic"," ", IF(COUNTRY_INFO!A14=0," ",COUNTRY_INFO!A14))) -> STP | B14: =IF(INTRO!$E$39<>"Non-endemic", " ", IF(INTRO!$E$37="Non-endemic"," ", IF(COUNTRY_INFO!B14=0," ",COUNTRY_INFO!B14))) -> Sao Tome | C14: =IF(INTRO!$E$39<>"Non-endemic", " ", IF(INTRO!$E$37="Non-endemic"," ", IF(COUNTRY_INFO!C14=0," ",COUNTRY_INFO!C14))) -> Cauè | D14: =IF(INTRO!$E$39<>"Non-endemic", 0, IF(INTRO!$E$37="Non-endemic",0,IF(COUNTRY_INFO!$H14=1,COUNTRY_INFO!E14,0))) -> 926 | E14: =IF(INTRO!$E$39<>"Non-endemic", 0, IF(INTRO!$E$37="Non-endemic",0,IF(COUNTRY_INFO!$H14=1,COUNTRY_INFO!F14,0))) -> 1972 | F14: =IF(INTRO!$E$39<>"Non-endemic", 0, IF(INTRO!$E$37="Non-endemic",0,IF(COUNTRY_INFO!$H14=1,COUNTRY_INFO!G14,0))) -> 4388 | G14: 7286 | H14: =IF(INTRO!$E$39="Non-endemic",IF(INTRO!$E$37="Non-endemic","Not required",COUNTRY_INFO!P14),"Treat with IVM") -> 1 | I14: 7286 | J14: 18215 | K14: 764 | L14: 17451 | M14: 19
A15: =IF(INTRO!$E$39<>"Non-endemic", " ", IF(INTRO!$E$37="Non-endemic"," ", IF(COUNTRY_INFO!A15=0," ",COUNTRY_INFO!A15))) -> STP | B15: =IF(INTRO!$E$39<>"Non-endemic", " ", IF(INTRO!$E$37="Non-endemic"," ", IF(COUNTRY_INFO!B15=0," ",COUNTRY_INFO!B15))) -> Principe | C15: =IF(INTRO!$E$39<>"Non-endemic", " ", IF(INTRO!$E$37="Non-endemic"," ", IF(COUNTRY_INFO!C15=0," ",COUNTRY_INFO!C15))) -> Píncipe | D15: =IF(INTRO!$E$39<>"Non-endemic", 0, IF(INTRO!$E$37="Non-endemic",0,IF(COUNTRY_INFO!$H15=1,COUNTRY_INFO!E15,0))) -> 1078 | E15: =IF(INTRO!$E$39<>"Non-endemic", 0, IF(INTRO!$E$37="Non-endemic",0,IF(COUNTRY_INFO!$H15=1,COUNTRY_INFO!F15,0))) -> 2297 | F15: =IF(INTRO!$E$39<>"Non-endemic", 0, IF(INTRO!$E$37="Non-endemic",0,IF(COUNTRY_INFO!$H15=1,COUNTRY_INFO!G15,0))) -> 5111 | G15: 8486 | H15: =IF(INTRO!$E$39="Non-endemic",IF(INTRO!$E$37="Non-endemic","Not required",COUNTRY_INFO!P15),"Treat with IVM") -> 1 | I15: 8486 | J15: 21215 | K15: 2075 | L15: 19140 | M15: 22

Sheet ALB_MBD
A1: Albendazole (ALB) and Mebendazole (MBD)
A2: Administrative structure, eligible population by age group, treatment plan and information about tablets
A4: TOTAL | D4: =SUM(D$9:D$1000) -> 25859 | E4: =SUM(E$9:E$1000) -> 55082 | F4: =SUM(F$9:F$1000) -> 80941 | I4: =SUM(I$9:I$1000) -> 203510 | K4: =SUM(K$9:K$1000) -> 25859 | L4: =SUM(L$9:L$1000) -> 55082 | M4: =SUM(M$9:M$1000) -> 0 | N4: =SUM(N$9:N$1000) -> 80941 | O4: =SUM(O$9:O$1000) -> 0 | P4: =SUM(P$9:P$1000) -> 0 | Q4: 0 | R4: 0 | S4: 0 | T4: 203510 | U4: 1020 | V4: 47511 | W4: 9555 | X4: 279 | Y4: 66312 | Z4: 0 | AA4: 0
A6: Country administrative structure | D6: Population requiring treatment with ALB/MBD | G6: Treatment plan | I6: People covered by PELF with ALB | J6: Select medicine for treatment of STH | K6: Target population | S6: Albendazole (ALB) | Y6: Mebendazole (MBD)
A7: Country | B7: Province/State | C7: District | D7: PreSAC | E7: SAC | F7: Total | G7: LF | H7: STH | K7: STH (ALB) | O7: STH (MBD) | S7: Remaining in stock (LF) | T7: Tablets to be procured (LF) | U7: Bottle (400 mg) 200 tablets (LF) | V7: Remaining in stock (STH) | W7: Tablets to be procured for SAC (STH) | X7: Bottle (400 mg) 200 tablets (STH) | Y7: Remaining in stock | Z7: Tablets to be procured for SAC | AA7: Bottles (500 mg) 150 tablets
K8: PreSAC | L8: SAC | M8: Other | N8: Total | O8: PreSAC | P8: SAC | Q8: Other | R8: Total
A9: =IF(AND(INTRO!$E$37="Non-endemic",INTRO!$E$41="Non-endemic")," ",IF(COUNTRY_INFO!A9=0," ",COUNTRY_INFO!A9)) -> STP | B9: =IF(AND(INTRO!$E$37="Non-endemic",INTRO!$E$41="Non-endemic")," ",IF(COUNTRY_INFO!B9=0," ",COUNTRY_INFO!B9)) -> Sao Tome | C9: =IF(AND(INTRO!$E$37="Non-endemic",INTRO!$E$41="Non-endemic")," ",IF(COUNTRY_INFO!C9=0," ",COUNTRY_INFO!C9)) -> Agua Grande | D9: =IF(AND(INTRO!$E$37="Non-endemic",INTRO!$E$41="Non-endemic"),0,IF(AND(OR(COUNTRY_INFO!$H9=0,COUNTRY_INFO!$H9=4,COUNTRY_INFO!$H9=99),OR(COUNTRY_INFO!$J9=0,COUNTRY_INFO!$J9=4)),0,COUNTRY_INFO!$E9)) -> 9925 | E9: =IF(AND(INTRO!$E$37="Non-endemic",INTRO!$E$41="Non-endemic"),0,IF(AND(OR(COUNTRY_INFO!$H9=0,COUNTRY_INFO!$H9=4,COUNTRY_INFO!$H9=99),OR(COUNTRY_INFO!$J9=0,COUNTRY_INFO!$J9=4)),0,COUNTRY_INFO!$F9)) -> 21141 | F9: =SUM(D9:E9) -> 31066 | G9: =IF(AND(INTRO!$E$37="Non-endemic",INTRO!$E$41="Non-endemic"),0,COUNTRY_INFO!P9) -> 1 | H9: =IF(AND(INTRO!$E$37="Non-endemic",INTRO!$E$41="Non-endemic"),0,COUNTRY_INFO!R9) -> 2 | I9: =IF(INTRO!$E$39="Non-endemic",IF($G9=1,DEC!I9,0),IF($G9=1,IVM!G9,0)) -> 78108 | J9: ALB | K9: =IF($J9="ALB", IF(INTRO!$E$39="Non-endemic", IF($H9<>0, IF($I9=0, $D9*$H9, $D9*($H9-$G9)), 0), $D9*$H9), 0) -> 9925 | L9: =IF($J9="ALB", IF($H9<>0, IF($I9=0, $E9*$H9, $E9*($H9-$G9)),0), 0) -> 21141 | N9: =SUM(K9:M9) -> 31066 | O9: =IF($J9="MBD", IF(INTRO!$E$39="Non-endemic", IF($H9<>0, IF($I9=0, $D9*$H9, $D9*($H9-$G9)), 0), $D9*$H9), 0) -> 0 | P9: =IF($J9="MBD", IF($H9<>0,IF($I9=0, $E9*$H9, $E9*($H9-$G9)),0), 0 ) -> 0 | R9: =SUM(O9:Q9) -> 0 | T9: =IF($I9>$S9, $I9-$S9,0) -> 78108 | U9: =ROUNDUP($I9/200,0) -> 391 | V9: 21730 | W9: =IF($L9>$V9,$L9-$V9,0) -> 0 | X9: =ROUNDUP($L9/200,0) -> 106 | Y9: 16895 | Z9: =IF($P9>$Y9,$P9-$Y9,0) -> 0 | AA9: =ROUNDUP($P9/150,0) -> 0
A10: =IF(AND(INTRO!$E$37="Non-endemic",INTRO!$E$41="Non-endemic")," ",IF(COUNTRY_INFO!A10=0," ",COUNTRY_INFO!A10)) -> STP | B10: =IF(AND(INTRO!$E$37="Non-endemic",INTRO!$E$41="Non-endemic")," ",IF(COUNTRY_INFO!B10=0," ",COUNTRY_INFO!B10)) -> Sao Tome | C10: =IF(AND(INTRO!$E$37="Non-endemic",INTRO!$E$41="Non-endemic")," ",IF(COUNTRY_INFO!C10=0," ",COUNTRY_INFO!C10)) -> Me-zochi | D10: =IF(AND(INTRO!$E$37="Non-endemic",INTRO!$E$41="Non-endemic"),0,IF(AND(OR(COUNTRY_INFO!$H10=0,COUNTRY_INFO!$H10=4,COUNTRY_INFO!$H10=99),OR(COUNTRY_INFO!$J10=0,COUNTRY_INFO!$J10=4)),0,COUNTRY_INFO!$E10)) -> 6502 | E10: =IF(AND(INTRO!$E$37="Non-endemic",INTRO!$E$41="Non-endemic"),0,IF(AND(OR(COUNTRY_INFO!$H10=0,COUNTRY_INFO!$H10=4,COUNTRY_INFO!$H10=99),OR(COUNTRY_INFO!$J10=0,COUNTRY_INFO!$J10=4)),0,COUNTRY_INFO!$F10)) -> 13850 | F10: 20352 | G10: =IF(AND(INTRO!$E$37="Non-endemic",INTRO!$E$41="Non-endemic"),0,COUNTRY_INFO!P10) -> 1 | H10: =IF(AND(INTRO!$E$37="Non-endemic",INTRO!$E$41="Non-endemic"),0,COUNTRY_INFO!R10) -> 2 | I10: =IF(INTRO!$E$39="Non-endemic",IF($G10=1,DEC!I10,0),IF($G10=1,IVM!G10,0)) -> 51172 | J10: ALB | K10: =IF($J10="ALB", IF(INTRO!$E$39="Non-endemic", IF($H10<>0, IF($I10=0, $D10*$H10, $D10*($H10-$G10)), 0), $D10*$H10), 0) -> 6502 | L10: 13850 | N10: 20352 | O10: =IF($J10="MBD", IF(INTRO!$E$39="Non-endemic", IF($H10<>0, IF($I10=0, $D10*$H10, $D10*($H10-$G10)), 0), $D10*$H10), 0) -> 0 | P10: 0 | R10: 0 | T10: 51172 | U10: 256 | V10: 11530 | W10: 2320 | X10: 70 | Y10: 13450 | Z10: 0 | AA10: 0
A11: =IF(AND(INTRO!$E$37="Non-endemic",INTRO!$E$41="Non-endemic")," ",IF(COUNTRY_INFO!A11=0," ",COUNTRY_INFO!A11)) -> STP | B11: =IF(AND(INTRO!$E$37="Non-endemic",INTRO!$E$41="Non-endemic")," ",IF(COUNTRY_INFO!B11=0," ",COUNTRY_INFO!B11)) -> Sao Tome | C11: =IF(AND(INTRO!$E$37="Non-endemic",INTRO!$E$41="Non-endemic")," ",IF(COUNTRY_INFO!C11=0," ",COUNTRY_INFO!C11)) -> Lobata | D11: =IF(AND(INTRO!$E$37="Non-endemic",INTRO!$E$41="Non-endemic"),0,IF(AND(OR(COUNTRY_INFO!$H11=0,COUNTRY_INFO!$H11=4,COUNTRY_INFO!$H11=99),OR(COUNTRY_INFO!$J11=0,COUNTRY_INFO!$J11=4)),0,COUNTRY_INFO!$E11)) -> 2871 | E11: =IF(AND(INTRO!$E$37="Non-endemic",INTRO!$E$41="Non-endemic"),0,IF(AND(OR(COUNTRY_INFO!$H11=0,COUNTRY_INFO!$H11=4,COUNTRY_INFO!$H11=99),OR(COUNTRY_INFO!$J11=0,COUNTRY_INFO!$J11=4)),0,COUNTRY_INFO!$F11)) -> 6115 | F11: 8986 | G11: =IF(AND(INTRO!$E$37="Non-endemic",INTRO!$E$41="Non-endemic"),0,COUNTRY_INFO!P11) -> 1 | H11: =IF(AND(INTRO!$E$37="Non-endemic",INTRO!$E$41="Non-endemic"),0,COUNTRY_INFO!R11) -> 2 | I11: =IF(INTRO!$E$39="Non-endemic",IF($G11=1,DEC!I11,0),IF($G11=1,IVM!G11,0)) -> 22593 | J11: ALB | K11: =IF($J11="ALB", IF(INTRO!$E$39="Non-endemic", IF($H11<>0, IF($I11=0, $D11*$H11, $D11*($H11-$G11)), 0), $D11*$H11), 0) -> 2871 | L11: 6115 | N11: 8986 | O11: =IF($J11="MBD", IF(INTRO!$E$39="Non-endemic", IF($H11<>0, IF($I11=0, $D11*$H11, $D11*($H11-$G11)), 0), $D11*$H11), 0) -> 0 | P11: 0 | R11: 0 | T11: 22593 | U11: 113 | V11: 7510 | W11: 0 | X11: 31 | Y11: 10564 | Z11: 0 | AA11: 0
A12: =IF(AND(INTRO!$E$37="Non-endemic",INTRO!$E$41="Non-endemic")," ",IF(COUNTRY_INFO!A12=0," ",COUNTRY_INFO!A12)) -> STP | B12: =IF(AND(INTRO!$E$37="Non-endemic",INTRO!$E$41="Non-endemic")," ",IF(COUNTRY_INFO!B12=0," ",COUNTRY_INFO!B12)) -> Sao Tome | C12: =IF(AND(INTRO!$E$37="Non-endemic",INTRO!$E$41="Non-endemic")," ",IF(COUNTRY_INFO!C12=0," ",COUNTRY_INFO!C12)) -> Cantagalo | D12: =IF(AND(INTRO!$E$37="Non-endemic",INTRO!$E$41="Non-endemic"),0,IF(AND(OR(COUNTRY_INFO!$H12=0,COUNTRY_INFO!$H12=4,COUNTRY_INFO!$H12=99),OR(COUNTRY_INFO!$J12=0,COUNTRY_INFO!$J12=4)),0,COUNTRY_INFO!$E12)) -> 2480 | E12: =IF(AND(INTRO!$E$37="Non-endemic",INTRO!$E$41="Non-endemic"),0,IF(AND(OR(COUNTRY_INFO!$H12=0,COUNTRY_INFO!$H12=4,COUNTRY_INFO!$H12=99),OR(COUNTRY_INFO!$J12=0,COUNTRY_INFO!$J12=4)),0,COUNTRY_INFO!$F12)) -> 5283 | F12: 7763 | G12: =IF(AND(INTRO!$E$37="Non-endemic",INTRO!$E$41="Non-endemic"),0,COUNTRY_INFO!P12) -> 1 | H12: =IF(AND(INTRO!$E$37="Non-endemic",INTRO!$E$41="Non-endemic"),0,COUNTRY_INFO!R12) -> 2 | I12: =IF(INTRO!$E$39="Non-endemic",IF($G12=1,DEC!I12,0),IF($G12=1,IVM!G12,0)) -> 19519 | J12: ALB | K12: =IF($J12="ALB", IF(INTRO!$E$39="Non-endemic", IF($H12<>0, IF($I12=0, $D12*$H12, $D12*($H12-$G12)), 0), $D12*$H12), 0) -> 2480 | L12: 5283 | N12: 7763 | O12: =IF($J12="MBD", IF(INTRO!$E$39="Non-endemic", IF($H12<>0, IF($I12=0, $D12*$H12, $D12*($H12-$G12)), 0), $D12*$H12), 0) -> 0 | P12: 0 | R12: 0 | T12: 19519 | U12: 98 | V12: 2630 | W12: 2653 | X12: 27 | Y12: 8600 | Z12: 0 | AA12: 0
A13: =IF(AND(INTRO!$E$37="Non-endemic",INTRO!$E$41="Non-endemic")," ",IF(COUNTRY_INFO!A13=0," ",COUNTRY_INFO!A13)) -> STP | B13: =IF(AND(INTRO!$E$37="Non-endemic",INTRO!$E$41="Non-endemic")," ",IF(COUNTRY_INFO!B13=0," ",COUNTRY_INFO!B13)) -> Sao Tome | C13: =IF(AND(INTRO!$E$37="Non-endemic",INTRO!$E$41="Non-endemic")," ",IF(COUNTRY_INFO!C13=0," ",COUNTRY_INFO!C13)) -> Lemba | D13: =IF(AND(INTRO!$E$37="Non-endemic",INTRO!$E$41="Non-endemic"),0,IF(AND(OR(COUNTRY_INFO!$H13=0,COUNTRY_INFO!$H13=4,COUNTRY_INFO!$H13=99),OR(COUNTRY_INFO!$J13=0,COUNTRY_INFO!$J13=4)),0,COUNTRY_INFO!$E13)) -> 2077 | E13: =IF(AND(INTRO!$E$37="Non-endemic",INTRO!$E$41="Non-endemic"),0,IF(AND(OR(COUNTRY_INFO!$H13=0,COUNTRY_INFO!$H13=4,COUNTRY_INFO!$H13=99),OR(COUNTRY_INFO!$J13=0,COUNTRY_INFO!$J13=4)),0,COUNTRY_INFO!$F13)) -> 4424 | F13: 6501 | G13: =IF(AND(INTRO!$E$37="Non-endemic",INTRO!$E$41="Non-endemic"),0,COUNTRY_INFO!P13) -> 1 | H13: =IF(AND(INTRO!$E$37="Non-endemic",INTRO!$E$41="Non-endemic"),0,COUNTRY_INFO!R13) -> 2 | I13: =IF(INTRO!$E$39="Non-endemic",IF($G13=1,DEC!I13,0),IF($G13=1,IVM!G13,0)) -> 16346 | J13: ALB | K13: =IF($J13="ALB", IF(INTRO!$E$39="Non-endemic", IF($H13<>0, IF($I13=0, $D13*$H13, $D13*($H13-$G13)), 0), $D13*$H13), 0) -> 2077 | L13: 4424 | N13: 6501 | O13: =IF($J13="MBD", IF(INTRO!$E$39="Non-endemic", IF($H13<>0, IF($I13=0, $D13*$H13, $D13*($H13-$G13)), 0), $D13*$H13), 0) -> 0 | P13: 0 | R13: 0 | T13: 16346 | U13: 82 | V13: 1560 | W13: 2864 | X13: 23 | Y13: 7153 | Z13: 0 | AA13: 0
A14: =IF(AND(INTRO!$E$37="Non-endemic",INTRO!$E$41="Non-endemic")," ",IF(COUNTRY_INFO!A14=0," ",COUNTRY_INFO!A14)) -> STP | B14: =IF(AND(INTRO!$E$37="Non-endemic",INTRO!$E$41="Non-endemic")," ",IF(COUNTRY_INFO!B14=0," ",COUNTRY_INFO!B14)) -> Sao Tome | C14: =IF(AND(INTRO!$E$37="Non-endemic",INTRO!$E$41="Non-endemic")," ",IF(COUNTRY_INFO!C14=0," ",COUNTRY_INFO!C14)) -> Cauè | D14: =IF(AND(INTRO!$E$37="Non-endemic",INTRO!$E$41="Non-endemic"),0,IF(AND(OR(COUNTRY_INFO!$H14=0,COUNTRY_INFO!$H14=4,COUNTRY_INFO!$H14=99),OR(COUNTRY_INFO!$J14=0,COUNTRY_INFO!$J14=4)),0,COUNTRY_INFO!$E14)) -> 926 | E14: =IF(AND(INTRO!$E$37="Non-endemic",INTRO!$E$41="Non-endemic"),0,IF(AND(OR(COUNTRY_INFO!$H14=0,COUNTRY_INFO!$H14=4,COUNTRY_INFO!$H14=99),OR(COUNTRY_INFO!$J14=0,COUNTRY_INFO!$J14=4)),0,COUNTRY_INFO!$F14)) -> 1972 | F14: 2898 | G14: =IF(AND(INTRO!$E$37="Non-endemic",INTRO!$E$41="Non-endemic"),0,COUNTRY_INFO!P14) -> 1 | H14: =IF(AND(INTRO!$E$37="Non-endemic",INTRO!$E$41="Non-endemic"),0,COUNTRY_INFO!R14) -> 2 | I14: =IF(INTRO!$E$39="Non-endemic",IF($G14=1,DEC!I14,0),IF($G14=1,IVM!G14,0)) -> 7286 | J14: ALB | K14: =IF($J14="ALB", IF(INTRO!$E$39="Non-endemic", IF($H14<>0, IF($I14=0, $D14*$H14, $D14*($H14-$G14)), 0), $D14*$H14), 0) -> 926 | L14: 1972 | N14: 2898 | O14: =IF($J14="MBD", IF(INTRO!$E$39="Non-endemic", IF($H14<>0, IF($I14=0, $D14*$H14, $D14*($H14-$G14)), 0), $D14*$H14), 0) -> 0 | P14: 0 | R14: 0 | T14: 7286 | U14: 37 | V14: 980 | W14: 992 | X14: 10 | Y14: 6400 | Z14: 0 | AA14: 0
A15: =IF(AND(INTRO!$E$37="Non-endemic",INTRO!$E$41="Non-endemic")," ",IF(COUNTRY_INFO!A15=0," ",COUNTRY_INFO!A15)) -> STP | B15: =IF(AND(INTRO!$E$37="Non-endemic",INTRO!$E$41="Non-endemic")," ",IF(COUNTRY_INFO!B15=0," ",COUNTRY_INFO!B15)) -> Principe | C15: =IF(AND(INTRO!$E$37="Non-endemic",INTRO!$E$41="Non-endemic")," ",IF(COUNTRY_INFO!C15=0," ",COUNTRY_INFO!C15)) -> Píncipe | D15: =IF(AND(INTRO!$E$37="Non-endemic",INTRO!$E$41="Non-endemic"),0,IF(AND(OR(COUNTRY_INFO!$H15=0,COUNTRY_INFO!$H15=4,COUNTRY_INFO!$H15=99),OR(COUNTRY_INFO!$J15=0,COUNTRY_INFO!$J15=4)),0,COUNTRY_INFO!$E15)) -> 1078 | E15: =IF(AND(INTRO!$E$37="Non-endemic",INTRO!$E$41="Non-endemic"),0,IF(AND(OR(COUNTRY_INFO!$H15=0,COUNTRY_INFO!$H15=4,COUNTRY_INFO!$H15=99),OR(COUNTRY_INFO!$J15=0,COUNTRY_INFO!$J15=4)),0,COUNTRY_INFO!$F15)) -> 2297 | F15: 3375 | G15: =IF(AND(INTRO!$E$37="Non-endemic",INTRO!$E$41="Non-endemic"),0,COUNTRY_INFO!P15) -> 1 | H15: =IF(AND(INTRO!$E$37="Non-endemic",INTRO!$E$41="Non-endemic"),0,COUNTRY_INFO!R15) -> 2 | I15: =IF(INTRO!$E$39="Non-endemic",IF($G15=1,DEC!I15,0),IF($G15=1,IVM!G15,0)) -> 8486 | J15: ALB | K15: =IF($J15="ALB", IF(INTRO!$E$39="Non-endemic", IF($H15<>0, IF($I15=0, $D15*$H15, $D15*($H15-$G15)), 0), $D15*$H15), 0) -> 1078 | L15: 2297 | N15: 3375 | O15: =IF($J15="MBD", IF(INTRO!$E$39="Non-endemic", IF($H15<>0, IF($I15=0, $D15*$H15, $D15*($H15-$G15)), 0), $D15*$H15), 0) -> 0 | P15: 0 | R15: 0 | T15: 8486 | U15: 43 | V15: 1571 | W15: 726 | X15: 12 | Y15: 3250 | Z15: 0 | AA15: 0

Sheet PZQ
A1: Praziquantel (PZQ)
A2: Administrative structure, eligible population by age group, treatment plan and information about tablets
A4: TOTAL | D4: =SUM(D$9:D$1000) -> 24125.53 | E4: =SUM(E$9:E$1000) -> 15572.4 | F4: =SUM(F$9:F$1000) -> 39697.93 | I4: =SUM(I$9:I$1000) -> 6630.03 | J4: 0 | K4: 0 | L4: 6630.03 | M4: 16575.075 | N4: 0 | O4: 16575.075 | P4: 53101 | Q4: 0 | R4: 19
A6: Country administrative structure | D6: Population requiring treatment with PZQ | G6: Treatment plan | I6: Target population | M6: Praziquantel (PZQ)
A7: Country | B7: Province/State | C7: District | D7: SAC | E7: Adults | F7: Total | G7: SCH | H7: All SAC targeted? | I7: SAC | J7: SAC at lower level | K7: Adults | L7: Total | M7: SAC | N7: Adults | O7: Total required for SAC | P7: Remaining in stock | Q7: Tablets to be procured | R7: Bottle (600 mg) 1000 tablets
A9: =IF(INTRO!$E$43="Non-endemic"," ", IF(COUNTRY_INFO!A9=0," ",COUNTRY_INFO!A9)) -> STP | B9: =IF(INTRO!$E$43="Non-endemic"," ", IF(COUNTRY_INFO!B9=0," ",COUNTRY_INFO!B9)) -> Sao Tome | C9: =IF(INTRO!$E$43="Non-endemic"," ", IF(COUNTRY_INFO!C9=0," ",COUNTRY_INFO!C9)) -> Agua Grande | D9: =IF(INTRO!$E$43="Non-endemic", 0, IF(COUNTRY_INFO!$K9>0, IF(COUNTRY_INFO!$K9=4, 0, IF(COUNTRY_INFO!$K9=1, COUNTRY_INFO!$F9*0.33, IF(COUNTRY_INFO!$K9=2, COUNTRY_INFO!$F9*0.5, COUNTRY_INFO!$F9))), 0)) -> 10570.5 | E9: =IF(INTRO!$E$43="Non-endemic", 0, IF(COUNTRY_INFO!$K9>0, IF(COUNTRY_INFO!$K9=4, 0, IF(COUNTRY_INFO!$K9=1, 0, IF(COUNTRY_INFO!$K9=2, COUNTRY_INFO!$G9*0.2, COUNTRY_INFO!$G9))), 0)) -> 9408.4 | F9: =SUM(D9:E9) -> 19978.9 | G9: =IF(INTRO!$E$43="Non-endemic", "Not required", COUNTRY_INFO!S9) -> 0 | I9: =IF($D9=0,0,IF(AND($G9>0,$H9<>"Yes"),D9,IF(AND($G9>0,$H9="Yes"),COUNTRY_INFO!$F9,0))) -> 0 | K9: =IF($G9>0,E9, 0) -> 0 | L9: =IF($J9=0,SUM(I9,K9),SUM(J9,K9)) -> 0 | M9: =IF($J9=0,$I9*2.5,$J9*2.5) -> 0 | N9: =$K9*3 -> 0 | O9: =M9 -> 0 | Q9: =IF($O9>$P9,O9-P9,0) -> 0 | R9: =ROUNDUP($O9/1000,0) -> 0
A10: =IF(INTRO!$E$43="Non-endemic"," ", IF(COUNTRY_INFO!A10=0," ",COUNTRY_INFO!A10)) -> STP | B10: =IF(INTRO!$E$43="Non-endemic"," ", IF(COUNTRY_INFO!B10=0," ",COUNTRY_INFO!B10)) -> Sao Tome | C10: =IF(INTRO!$E$43="Non-endemic"," ", IF(COUNTRY_INFO!C10=0," ",COUNTRY_INFO!C10)) -> Me-zochi | D10: =IF(INTRO!$E$43="Non-endemic", 0, IF(COUNTRY_INFO!$K10>0, IF(COUNTRY_INFO!$K10=4, 0, IF(COUNTRY_INFO!$K10=1, COUNTRY_INFO!$F10*0.33, IF(COUNTRY_INFO!$K10=2, COUNTRY_INFO!$F10*0.5, COUNTRY_INFO!$F10))), 0)) -> 6925 | E10: =IF(INTRO!$E$43="Non-endemic", 0, IF(COUNTRY_INFO!$K10>0, IF(COUNTRY_INFO!$K10=4, 0, IF(COUNTRY_INFO!$K10=1, 0, IF(COUNTRY_INFO!$K10=2, COUNTRY_INFO!$G10*0.2, COUNTRY_INFO!$G10))), 0)) -> 6164 | F10: 13089 | G10: =IF(INTRO!$E$43="Non-endemic", "Not required", COUNTRY_INFO!S10) -> 0 | I10: =IF($D10=0,0,IF(AND($G10>0,$H10<>"Yes"),D10,IF(AND($G10>0,$H10="Yes"),COUNTRY_INFO!$F10,0))) -> 0 | K10: 0 | L10: 0 | M10: 0 | N10: 0 | O10: 0 | Q10: 0 | R10: 0
A11: =IF(INTRO!$E$43="Non-endemic"," ", IF(COUNTRY_INFO!A11=0," ",COUNTRY_INFO!A11)) -> STP | B11: =IF(INTRO!$E$43="Non-endemic"," ", IF(COUNTRY_INFO!B11=0," ",COUNTRY_INFO!B11)) -> Sao Tome | C11: =IF(INTRO!$E$43="Non-endemic"," ", IF(COUNTRY_INFO!C11=0," ",COUNTRY_INFO!C11)) -> Lobata | D11: =IF(INTRO!$E$43="Non-endemic", 0, IF(COUNTRY_INFO!$K11>0, IF(COUNTRY_INFO!$K11=4, 0, IF(COUNTRY_INFO!$K11=1, COUNTRY_INFO!$F11*0.33, IF(COUNTRY_INFO!$K11=2, COUNTRY_INFO!$F11*0.5, COUNTRY_INFO!$F11))), 0)) -> 2017.95 | E11: =IF(INTRO!$E$43="Non-endemic", 0, IF(COUNTRY_INFO!$K11>0, IF(COUNTRY_INFO!$K11=4, 0, IF(COUNTRY_INFO!$K11=1, 0, IF(COUNTRY_INFO!$K11=2, COUNTRY_INFO!$G11*0.2, COUNTRY_INFO!$G11))), 0)) -> 0 | F11: 2017.95 | G11: =IF(INTRO!$E$43="Non-endemic", "Not required", COUNTRY_INFO!S11) -> 1 | I11: =IF($D11=0,0,IF(AND($G11>0,$H11<>"Yes"),D11,IF(AND($G11>0,$H11="Yes"),COUNTRY_INFO!$F11,0))) -> 2017.95 | K11: 0 | L11: 2017.95 | M11: 5044.875 | N11: 0 | O11: 5044.875 | P11: 18000 | Q11: 0 | R11: 6
A12: =IF(INTRO!$E$43="Non-endemic"," ", IF(COUNTRY_INFO!A12=0," ",COUNTRY_INFO!A12)) -> STP | B12: =IF(INTRO!$E$43="Non-endemic"," ", IF(COUNTRY_INFO!B12=0," ",COUNTRY_INFO!B12)) -> Sao Tome | C12: =IF(INTRO!$E$43="Non-endemic"," ", IF(COUNTRY_INFO!C12=0," ",COUNTRY_INFO!C12)) -> Cantagalo | D12: =IF(INTRO!$E$43="Non-endemic", 0, IF(COUNTRY_INFO!$K12>0, IF(COUNTRY_INFO!$K12=4, 0, IF(COUNTRY_INFO!$K12=1, COUNTRY_INFO!$F12*0.33, IF(COUNTRY_INFO!$K12=2, COUNTRY_INFO!$F12*0.5, COUNTRY_INFO!$F12))), 0)) -> 1743.39 | E12: =IF(INTRO!$E$43="Non-endemic", 0, IF(COUNTRY_INFO!$K12>0, IF(COUNTRY_INFO!$K12=4, 0, IF(COUNTRY_INFO!$K12=1, 0, IF(COUNTRY_INFO!$K12=2, COUNTRY_INFO!$G12*0.2, COUNTRY_INFO!$G12))), 0)) -> 0 | F12: 1743.39 | G12: =IF(INTRO!$E$43="Non-endemic", "Not required", COUNTRY_INFO!S12) -> 1 | I12: =IF($D12=0,0,IF(AND($G12>0,$H12<>"Yes"),D12,IF(AND($G12>0,$H12="Yes"),COUNTRY_INFO!$F12,0))) -> 1743.39 | K12: 0 | L12: 1743.39 | M12: 4358.475 | N12: 0 | O12: 4358.475 | P12: 18000 | Q12: 0 | R12: 5
A13: =IF(INTRO!$E$43="Non-endemic"," ", IF(COUNTRY_INFO!A13=0," ",COUNTRY_INFO!A13)) -> STP | B13: =IF(INTRO!$E$43="Non-endemic"," ", IF(COUNTRY_INFO!B13=0," ",COUNTRY_INFO!B13)) -> Sao Tome | C13: =IF(INTRO!$E$43="Non-endemic"," ", IF(COUNTRY_INFO!C13=0," ",COUNTRY_INFO!C13)) -> Lemba | D13: =IF(INTRO!$E$43="Non-endemic", 0, IF(COUNTRY_INFO!$K13>0, IF(COUNTRY_INFO!$K13=4, 0, IF(COUNTRY_INFO!$K13=1, COUNTRY_INFO!$F13*0.33, IF(COUNTRY_INFO!$K13=2, COUNTRY_INFO!$F13*0.5, COUNTRY_INFO!$F13))), 0)) -> 1459.92 | E13: =IF(INTRO!$E$43="Non-endemic", 0, IF(COUNTRY_INFO!$K13>0, IF(COUNTRY_INFO!$K13=4, 0, IF(COUNTRY_INFO!$K13=1, 0, IF(COUNTRY_INFO!$K13=2, COUNTRY_INFO!$G13*0.2, COUNTRY_INFO!$G13))), 0)) -> 0 | F13: 1459.92 | G13: =IF(INTRO!$E$43="Non-endemic", "Not required", COUNTRY_INFO!S13) -> 1 | I13: =IF($D13=0,0,IF(AND($G13>0,$H13<>"Yes"),D13,IF(AND($G13>0,$H13="Yes"),COUNTRY_INFO!$F13,0))) -> 1459.92 | K13: 0 | L13: 1459.92 | M13: 3649.8 | N13: 0 | O13: 3649.8 | P13: 9000 | Q13: 0 | R13: 4
A14: =IF(INTRO!$E$43="Non-endemic"," ", IF(COUNTRY_INFO!A14=0," ",COUNTRY_INFO!A14)) -> STP | B14: =IF(INTRO!$E$43="Non-endemic"," ", IF(COUNTRY_INFO!B14=0," ",COUNTRY_INFO!B14)) -> Sao Tome | C14: =IF(INTRO!$E$43="Non-endemic"," ", IF(COUNTRY_INFO!C14=0," ",COUNTRY_INFO!C14)) -> Cauè | D14: =IF(INTRO!$E$43="Non-endemic", 0, IF(COUNTRY_INFO!$K14>0, IF(COUNTRY_INFO!$K14=4, 0, IF(COUNTRY_INFO!$K14=1, COUNTRY_INFO!$F14*0.33, IF(COUNTRY_INFO!$K14=2, COUNTRY_INFO!$F14*0.5, COUNTRY_INFO!$F14))), 0)) -> 650.76 | E14: =IF(INTRO!$E$43="Non-endemic", 0, IF(COUNTRY_INFO!$K14>0, IF(COUNTRY_INFO!$K14=4, 0, IF(COUNTRY_INFO!$K14=1, 0, IF(COUNTRY_INFO!$K14=2, COUNTRY_INFO!$G14*0.2, COUNTRY_INFO!$G14))), 0)) -> 0 | F14: 650.76 | G14: =IF(INTRO!$E$43="Non-endemic", "Not required", COUNTRY_INFO!S14) -> 1 | I14: =IF($D14=0,0,IF(AND($G14>0,$H14<>"Yes"),D14,IF(AND($G14>0,$H14="Yes"),COUNTRY_INFO!$F14,0))) -> 650.76 | K14: 0 | L14: 650.76 | M14: 1626.9 | N14: 0 | O14: 1626.9 | P14: 6000 | Q14: 0 | R14: 2
A15: =IF(INTRO!$E$43="Non-endemic"," ", IF(COUNTRY_INFO!A15=0," ",COUNTRY_INFO!A15)) -> STP | B15: =IF(INTRO!$E$43="Non-endemic"," ", IF(COUNTRY_INFO!B15=0," ",COUNTRY_INFO!B15)) -> Principe | C15: =IF(INTRO!$E$43="Non-endemic"," ", IF(COUNTRY_INFO!C15=0," ",COUNTRY_INFO!C15)) -> Píncipe | D15: =IF(INTRO!$E$43="Non-endemic", 0, IF(COUNTRY_INFO!$K15>0, IF(COUNTRY_INFO!$K15=4, 0, IF(COUNTRY_INFO!$K15=1, COUNTRY_INFO!$F15*0.33, IF(COUNTRY_INFO!$K15=2, COUNTRY_INFO!$F15*0.5, COUNTRY_INFO!$F15))), 0)) -> 758.01 | E15: =IF(INTRO!$E$43="Non-endemic", 0, IF(COUNTRY_INFO!$K15>0, IF(COUNTRY_INFO!$K15=4, 0, IF(COUNTRY_INFO!$K15=1, 0, IF(COUNTRY_INFO!$K15=2, COUNTRY_INFO!$G15*0.2, COUNTRY_INFO!$G15))), 0)) -> 0 | F15: 758.01 | G15: =IF(INTRO!$E$43="Non-endemic", "Not required", COUNTRY_INFO!S15) -> 1 | I15: =IF($D15=0,0,IF(AND($G15>0,$H15<>"Yes"),D15,IF(AND($G15>0,$H15="Yes"),COUNTRY_INFO!$F15,0))) -> 758.01 | K15: 0 | L15: 758.01 | M15: 1895.025 | N15: 0 | O15: 1895.025 | P15: 2101 | Q15: 0 | R15: 2

Sheet IVM (hidden)
A1: Ivermectin (IVM)
A2: Administrative structure, eligible population by age group, treatment plan and information about tablets
A4: TOTAL | D4: =SUM(D$9:D$1000) -> 0 | G4: =SUM(G$9:G$1000) -> 0 | H4: 0 | I4: 0 | J4: 0 | K4: 0 | L4: 0 | M4: 0 | N4: 0 | O4: 0 | P4: 0 | Q4: 0
A6: Country administrative structure | D6: Population requiring treatment with IVM | E6: Treatment plan | G6: Target population | K6: Ivermectin (IVM)
A7: Country | B7: Province/State | C7: District | E7: LF | F7: Oncho | G7: LF | H7: Oncho | K7: LF only | L7: Oncho only | M7: LF+Oncho | N7: Total required | O7: Remaining in stock | P7: Tablets to be procured | Q7: Bottles (3mg) 500 tablets
H8: in the district | I8: in villages | J8: total
A9: =IF(INTRO!$E$39="Non-endemic"," ",IF(COUNTRY_INFO!A9=0," ",COUNTRY_INFO!A9)) ->  | B9: =IF(INTRO!$E$39="Non-endemic"," ",IF(COUNTRY_INFO!B9=0," ",COUNTRY_INFO!B9)) ->  | C9: =IF(INTRO!$E$39="Non-endemic"," ",IF(COUNTRY_INFO!C9=0," ",COUNTRY_INFO!C9)) ->  | D9: =IF(INTRO!$E$39="Non-endemic",0,IF(INTRO!$E$39="Endemic but PC is not required",IF(COUNTRY_INFO!$H9=1,COUNTRY_INFO!F9+COUNTRY_INFO!G9,0),IF(COUNTRY_INFO!$H9=1,COUNTRY_INFO!F9+COUNTRY_INFO!G9,IF(COUNTRY_INFO!$I9=1,IF(COUNTRY_INFO!M9>=(COUNTRY_INFO!F9+COUNTRY_INFO!G9),COUNTRY_INFO!F9+COUNTRY_INFO!G9,COUNTRY_INFO!$M9),0)))) -> 0 | E9: =IF(AND(INTRO!$E$39="Non-endemic",INTRO!$E$37="Non-endemic"),"Not required",IF(INTRO!$E$39="Non-endemic","Treat with DEC",COUNTRY_INFO!P9)) -> Treat with DEC | F9: =IF(INTRO!$E$39<>"Non-endemic",COUNTRY_INFO!Q9,"Not required") -> Not required | G9: =IF(COUNTRY_INFO!H9=1, IF($E9=1,$D9, 0),0) -> 0 | H9: =IF(INTRO!$E$39<>"Endemic",0, IF(AND(COUNTRY_INFO!$I9=1,$F9<>0),IF(COUNTRY_INFO!M9>=(COUNTRY_INFO!F9+COUNTRY_INFO!G9),COUNTRY_INFO!F9+COUNTRY_INFO!G9,COUNTRY_INFO!$M9), 0)) -> 0 | J9: =IF(I9=0,H9,IF(I9>H9,H9,I9)) -> 0 | K9: =IF(G9<J9,0,IF($E9=1, (G9-J9)*2.8, 0)) -> 0 | L9: =IF($E9<$F9, J9*(F9-E9)*2.8, 0) -> 0 | M9: =IF(AND($E9=1, $F9<>0), J9*2.8, 0) -> 0 | N9: =SUM(K9:M9) -> 0 | P9: =IF($N9>$O9,$N9-$O9,0) -> 0 | Q9: =ROUNDUP($N9/500,0) -> 0
A10: =IF(INTRO!$E$39="Non-endemic"," ",IF(COUNTRY_INFO!A10=0," ",COUNTRY_INFO!A10)) ->  | B10: =IF(INTRO!$E$39="Non-endemic"," ",IF(COUNTRY_INFO!B10=0," ",COUNTRY_INFO!B10)) ->  | C10: =IF(INTRO!$E$39="Non-endemic"," ",IF(COUNTRY_INFO!C10=0," ",COUNTRY_INFO!C10)) ->  | D10: =IF(INTRO!$E$39="Non-endemic",0,IF(INTRO!$E$39="Endemic but PC is not required",IF(COUNTRY_INFO!$H10=1,COUNTRY_INFO!F10+COUNTRY_INFO!G10,0),IF(COUNTRY_INFO!$H10=1,COUNTRY_INFO!F10+COUNTRY_INFO!G10,IF(COUNTRY_INFO!$I10=1,IF(COUNTRY_INFO!M10>=(COUNTRY_INFO!F10+COUNTRY_INFO!G10),COUNTRY_INFO!F10+COUNTRY_INFO!G10,COUNTRY_INFO!$M10),0)))) -> 0 | E10: =IF(AND(INTRO!$E$39="Non-endemic",INTRO!$E$37="Non-endemic"),"Not required",IF(INTRO!$E$39="Non-endemic","Treat with DEC",COUNTRY_INFO!P10)) -> Treat with DEC | F10: =IF(INTRO!$E$39<>"Non-endemic",COUNTRY_INFO!Q10,"Not required") -> Not required | G10: =IF(COUNTRY_INFO!H10=1, IF($E10=1,$D10, 0),0) -> 0 | H10: =IF(INTRO!$E$39<>"Endemic",0, IF(AND(COUNTRY_INFO!$I10=1,$F10<>0),IF(COUNTRY_INFO!M10>=(COUNTRY_INFO!F10+COUNTRY_INFO!G10),COUNTRY_INFO!F10+COUNTRY_INFO!G10,COUNTRY_INFO!$M10), 0)) -> 0 | J10: 0 | K10: 0 | L10: 0 | M10: 0 | N10: 0 | P10: 0 | Q10: 0
A11: =IF(INTRO!$E$39="Non-endemic"," ",IF(COUNTRY_INFO!A11=0," ",COUNTRY_INFO!A11)) ->  | B11: =IF(INTRO!$E$39="Non-endemic"," ",IF(COUNTRY_INFO!B11=0," ",COUNTRY_INFO!B11)) ->  | C11: =IF(INTRO!$E$39="Non-endemic"," ",IF(COUNTRY_INFO!C11=0," ",COUNTRY_INFO!C11)) ->  | D11: =IF(INTRO!$E$39="Non-endemic",0,IF(INTRO!$E$39="Endemic but PC is not required",IF(COUNTRY_INFO!$H11=1,COUNTRY_INFO!F11+COUNTRY_INFO!G11,0),IF(COUNTRY_INFO!$H11=1,COUNTRY_INFO!F11+COUNTRY_INFO!G11,IF(COUNTRY_INFO!$I11=1,IF(COUNTRY_INFO!M11>=(COUNTRY_INFO!F11+COUNTRY_INFO!G11),COUNTRY_INFO!F11+COUNTRY_INFO!G11,COUNTRY_INFO!$M11),0)))) -> 0 | E11: =IF(AND(INTRO!$E$39="Non-endemic",INTRO!$E$37="Non-endemic"),"Not required",IF(INTRO!$E$39="Non-endemic","Treat with DEC",COUNTRY_INFO!P11)) -> Treat with DEC | F11: =IF(INTRO!$E$39<>"Non-endemic",COUNTRY_INFO!Q11,"Not required") -> Not required | G11: =IF(COUNTRY_INFO!H11=1, IF($E11=1,$D11, 0),0) -> 0 | H11: =IF(INTRO!$E$39<>"Endemic",0, IF(AND(COUNTRY_INFO!$I11=1,$F11<>0),IF(COUNTRY_INFO!M11>=(COUNTRY_INFO!F11+COUNTRY_INFO!G11),COUNTRY_INFO!F11+COUNTRY_INFO!G11,COUNTRY_INFO!$M11), 0)) -> 0 | J11: 0 | K11: 0 | L11: 0 | M11: 0 | N11: 0 | P11: 0 | Q11: 0
A12: =IF(INTRO!$E$39="Non-endemic"," ",IF(COUNTRY_INFO!A12=0," ",COUNTRY_INFO!A12)) ->  | B12: =IF(INTRO!$E$39="Non-endemic"," ",IF(COUNTRY_INFO!B12=0," ",COUNTRY_INFO!B12)) ->  | C12: =IF(INTRO!$E$39="Non-endemic"," ",IF(COUNTRY_INFO!C12=0," ",COUNTRY_INFO!C12)) ->  | D12: =IF(INTRO!$E$39="Non-endemic",0,IF(INTRO!$E$39="Endemic but PC is not required",IF(COUNTRY_INFO!$H12=1,COUNTRY_INFO!F12+COUNTRY_INFO!G12,0),IF(COUNTRY_INFO!$H12=1,COUNTRY_INFO!F12+COUNTRY_INFO!G12,IF(COUNTRY_INFO!$I12=1,IF(COUNTRY_INFO!M12>=(COUNTRY_INFO!F12+COUNTRY_INFO!G12),COUNTRY_INFO!F12+COUNTRY_INFO!G12,COUNTRY_INFO!$M12),0)))) -> 0 | E12: =IF(AND(INTRO!$E$39="Non-endemic",INTRO!$E$37="Non-endemic"),"Not required",IF(INTRO!$E$39="Non-endemic","Treat with DEC",COUNTRY_INFO!P12)) -> Treat with DEC | F12: =IF(INTRO!$E$39<>"Non-endemic",COUNTRY_INFO!Q12,"Not required") -> Not required | G12: =IF(COUNTRY_INFO!H12=1, IF($E12=1,$D12, 0),0) -> 0 | H12: =IF(INTRO!$E$39<>"Endemic",0, IF(AND(COUNTRY_INFO!$I12=1,$F12<>0),IF(COUNTRY_INFO!M12>=(COUNTRY_INFO!F12+COUNTRY_INFO!G12),COUNTRY_INFO!F12+COUNTRY_INFO!G12,COUNTRY_INFO!$M12), 0)) -> 0 | J12: 0 | K12: 0 | L12: 0 | M12: 0 | N12: 0 | P12: 0 | Q12: 0
A13: =IF(INTRO!$E$39="Non-endemic"," ",IF(COUNTRY_INFO!A13=0," ",COUNTRY_INFO!A13)) ->  | B13: =IF(INTRO!$E$39="Non-endemic"," ",IF(COUNTRY_INFO!B13=0," ",COUNTRY_INFO!B13)) ->  | C13: =IF(INTRO!$E$39="Non-endemic"," ",IF(COUNTRY_INFO!C13=0," ",COUNTRY_INFO!C13)) ->  | D13: =IF(INTRO!$E$39="Non-endemic",0,IF(INTRO!$E$39="Endemic but PC is not required",IF(COUNTRY_INFO!$H13=1,COUNTRY_INFO!F13+COUNTRY_INFO!G13,0),IF(COUNTRY_INFO!$H13=1,COUNTRY_INFO!F13+COUNTRY_INFO!G13,IF(COUNTRY_INFO!$I13=1,IF(COUNTRY_INFO!M13>=(COUNTRY_INFO!F13+COUNTRY_INFO!G13),COUNTRY_INFO!F13+COUNTRY_INFO!G13,COUNTRY_INFO!$M13),0)))) -> 0 | E13: =IF(AND(INTRO!$E$39="Non-endemic",INTRO!$E$37="Non-endemic"),"Not required",IF(INTRO!$E$39="Non-endemic","Treat with DEC",COUNTRY_INFO!P13)) -> Treat with DEC | F13: =IF(INTRO!$E$39<>"Non-endemic",COUNTRY_INFO!Q13,"Not required") -> Not required | G13: =IF(COUNTRY_INFO!H13=1, IF($E13=1,$D13, 0),0) -> 0 | H13: =IF(INTRO!$E$39<>"Endemic",0, IF(AND(COUNTRY_INFO!$I13=1,$F13<>0),IF(COUNTRY_INFO!M13>=(COUNTRY_INFO!F13+COUNTRY_INFO!G13),COUNTRY_INFO!F13+COUNTRY_INFO!G13,COUNTRY_INFO!$M13), 0)) -> 0 | J13: 0 | K13: 0 | L13: 0 | M13: 0 | N13: 0 | P13: 0 | Q13: 0
A14: =IF(INTRO!$E$39="Non-endemic"," ",IF(COUNTRY_INFO!A14=0," ",COUNTRY_INFO!A14)) ->  | B14: =IF(INTRO!$E$39="Non-endemic"," ",IF(COUNTRY_INFO!B14=0," ",COUNTRY_INFO!B14)) ->  | C14: =IF(INTRO!$E$39="Non-endemic"," ",IF(COUNTRY_INFO!C14=0," ",COUNTRY_INFO!C14)) ->  | D14: =IF(INTRO!$E$39="Non-endemic",0,IF(INTRO!$E$39="Endemic but PC is not required",IF(COUNTRY_INFO!$H14=1,COUNTRY_INFO!F14+COUNTRY_INFO!G14,0),IF(COUNTRY_INFO!$H14=1,COUNTRY_INFO!F14+COUNTRY_INFO!G14,IF(COUNTRY_INFO!$I14=1,IF(COUNTRY_INFO!M14>=(COUNTRY_INFO!F14+COUNTRY_INFO!G14),COUNTRY_INFO!F14+COUNTRY_INFO!G14,COUNTRY_INFO!$M14),0)))) -> 0 | E14: =IF(AND(INTRO!$E$39="Non-endemic",INTRO!$E$37="Non-endemic"),"Not required",IF(INTRO!$E$39="Non-endemic","Treat with DEC",COUNTRY_INFO!P14)) -> Treat with DEC | F14: =IF(INTRO!$E$39<>"Non-endemic",COUNTRY_INFO!Q14,"Not required") -> Not required | G14: =IF(COUNTRY_INFO!H14=1, IF($E14=1,$D14, 0),0) -> 0 | H14: =IF(INTRO!$E$39<>"Endemic",0, IF(AND(COUNTRY_INFO!$I14=1,$F14<>0),IF(COUNTRY_INFO!M14>=(COUNTRY_INFO!F14+COUNTRY_INFO!G14),COUNTRY_INFO!F14+COUNTRY_INFO!G14,COUNTRY_INFO!$M14), 0)) -> 0 | J14: 0 | K14: 0 | L14: 0 | M14: 0 | N14: 0 | P14: 0 | Q14: 0
A15: =IF(INTRO!$E$39="Non-endemic"," ",IF(COUNTRY_INFO!A15=0," ",COUNTRY_INFO!A15)) ->  | B15: =IF(INTRO!$E$39="Non-endemic"," ",IF(COUNTRY_INFO!B15=0," ",COUNTRY_INFO!B15)) ->  | C15: =IF(INTRO!$E$39="Non-endemic"," ",IF(COUNTRY_INFO!C15=0," ",COUNTRY_INFO!C15)) ->  | D15: =IF(INTRO!$E$39="Non-endemic",0,IF(INTRO!$E$39="Endemic but PC is not required",IF(COUNTRY_INFO!$H15=1,COUNTRY_INFO!F15+COUNTRY_INFO!G15,0),IF(COUNTRY_INFO!$H15=1,COUNTRY_INFO!F15+COUNTRY_INFO!G15,IF(COUNTRY_INFO!$I15=1,IF(COUNTRY_INFO!M15>=(COUNTRY_INFO!F15+COUNTRY_INFO!G15),COUNTRY_INFO!F15+COUNTRY_INFO!G15,COUNTRY_INFO!$M15),0)))) -> 0 | E15: =IF(AND(INTRO!$E$39="Non-endemic",INTRO!$E$37="Non-endemic"),"Not required",IF(INTRO!$E$39="Non-endemic","Treat with DEC",COUNTRY_INFO!P15)) -> Treat with DEC | F15: =IF(INTRO!$E$39<>"Non-endemic",COUNTRY_INFO!Q15,"Not required") -> Not required | G15: =IF(COUNTRY_INFO!H15=1, IF($E15=1,$D15, 0),0) -> 0 | H15: =IF(INTRO!$E$39<>"Endemic",0, IF(AND(COUNTRY_INFO!$I15=1,$F15<>0),IF(COUNTRY_INFO!M15>=(COUNTRY_INFO!F15+COUNTRY_INFO!G15),COUNTRY_INFO!F15+COUNTRY_INFO!G15,COUNTRY_INFO!$M15), 0)) -> 0 | J15: 0 | K15: 0 | L15: 0 | M15: 0 | N15: 0 | P15: 0 | Q15: 0

Sheet IVM+
A1: Ivermectin (IVM) for IDA therapy
A2: Administrative structure, eligible population by age group, treatment plan and information about tablets
A4: TOTAL | E4: =SUM(E$9:E$1000) -> 177651 | F4: =SUM(F$9:F$1000) -> 497422.8 | G4: =SUM(G$9:G$1000) -> 53761 | H4: =SUM(H$9:H$1000) -> 443661.8 | I4: =SUM(I$9:I$1000) -> 998
A6: Country administrative structure | D6: Treatment plan | E6: Population targeted for treatment with IVM (IDA therapy)
A7: Country | B7: Province/State | C7: District | D7: LF | F7: Total required | G7: Remaining in stock | H7: Tablets to be procured | I7: Bottles (3mg) 500 tablets
A9: =IF(AND(INTRO!$E$37="Endemic",INTRO!$E$39="Non-endemic"),IF(COUNTRY_INFO!A9=0," ",COUNTRY_INFO!A9)," ") -> STP | B9: =IF(AND(INTRO!$E$37="Endemic",INTRO!$E$39="Non-endemic"),IF(COUNTRY_INFO!B9=0," ",COUNTRY_INFO!B9)," ") -> Sao Tome | C9: =IF(AND(INTRO!$E$37="Endemic",INTRO!$E$39="Non-endemic"),IF(COUNTRY_INFO!C9=0," ",COUNTRY_INFO!C9)," ") -> Agua Grande | D9: =IF(COUNTRY_INFO!T9<>"",COUNTRY_INFO!P9,0) -> 1 | E9: =IF(AND(COUNTRY_INFO!T9<>"",COUNTRY_INFO!$H9=1),COUNTRY_INFO!F9+COUNTRY_INFO!G9,0) -> 68183 | F9: =E9*2.8 -> 190912.4 | G9: 30260 | H9: =IF($F9>$G9,$F9-$G9,0) -> 160652.4 | I9: =ROUNDUP($F9/500,0) -> 382
A10: =IF(AND(INTRO!$E$37="Endemic",INTRO!$E$39="Non-endemic"),IF(COUNTRY_INFO!A10=0," ",COUNTRY_INFO!A10)," ") -> STP | B10: =IF(AND(INTRO!$E$37="Endemic",INTRO!$E$39="Non-endemic"),IF(COUNTRY_INFO!B10=0," ",COUNTRY_INFO!B10)," ") -> Sao Tome | C10: =IF(AND(INTRO!$E$37="Endemic",INTRO!$E$39="Non-endemic"),IF(COUNTRY_INFO!C10=0," ",COUNTRY_INFO!C10)," ") -> Me-zochi | D10: =IF(COUNTRY_INFO!T10<>"",COUNTRY_INFO!P10,0) -> 1 | E10: =IF(AND(COUNTRY_INFO!T10<>"",COUNTRY_INFO!$H10=1),COUNTRY_INFO!F10+COUNTRY_INFO!G10,0) -> 44670 | F10: 125076 | G10: 7000 | H10: 118076 | I10: 251
A11: =IF(AND(INTRO!$E$37="Endemic",INTRO!$E$39="Non-endemic"),IF(COUNTRY_INFO!A11=0," ",COUNTRY_INFO!A11)," ") -> STP | B11: =IF(AND(INTRO!$E$37="Endemic",INTRO!$E$39="Non-endemic"),IF(COUNTRY_INFO!B11=0," ",COUNTRY_INFO!B11)," ") -> Sao Tome | C11: =IF(AND(INTRO!$E$37="Endemic",INTRO!$E$39="Non-endemic"),IF(COUNTRY_INFO!C11=0," ",COUNTRY_INFO!C11)," ") -> Lobata | D11: =IF(COUNTRY_INFO!T11<>"",COUNTRY_INFO!P11,0) -> 1 | E11: =IF(AND(COUNTRY_INFO!T11<>"",COUNTRY_INFO!$H11=1),COUNTRY_INFO!F11+COUNTRY_INFO!G11,0) -> 19722 | F11: 55221.6 | G11: 4980 | H11: 50241.6 | I11: 111
A12: =IF(AND(INTRO!$E$37="Endemic",INTRO!$E$39="Non-endemic"),IF(COUNTRY_INFO!A12=0," ",COUNTRY_INFO!A12)," ") -> STP | B12: =IF(AND(INTRO!$E$37="Endemic",INTRO!$E$39="Non-endemic"),IF(COUNTRY_INFO!B12=0," ",COUNTRY_INFO!B12)," ") -> Sao Tome | C12: =IF(AND(INTRO!$E$37="Endemic",INTRO!$E$39="Non-endemic"),IF(COUNTRY_INFO!C12=0," ",COUNTRY_INFO!C12)," ") -> Cantagalo | D12: =IF(COUNTRY_INFO!T12<>"",COUNTRY_INFO!P12,0) -> 1 | E12: =IF(AND(COUNTRY_INFO!T12<>"",COUNTRY_INFO!$H12=1),COUNTRY_INFO!F12+COUNTRY_INFO!G12,0) -> 17039 | F12: 47709.2 | G12: 347 | H12: 47362.2 | I12: 96
A13: =IF(AND(INTRO!$E$37="Endemic",INTRO!$E$39="Non-endemic"),IF(COUNTRY_INFO!A13=0," ",COUNTRY_INFO!A13)," ") -> STP | B13: =IF(AND(INTRO!$E$37="Endemic",INTRO!$E$39="Non-endemic"),IF(COUNTRY_INFO!B13=0," ",COUNTRY_INFO!B13)," ") -> Sao Tome | C13: =IF(AND(INTRO!$E$37="Endemic",INTRO!$E$39="Non-endemic"),IF(COUNTRY_INFO!C13=0," ",COUNTRY_INFO!C13)," ") -> Lemba | D13: =IF(COUNTRY_INFO!T13<>"",COUNTRY_INFO!P13,0) -> 1 | E13: =IF(AND(COUNTRY_INFO!T13<>"",COUNTRY_INFO!$H13=1),COUNTRY_INFO!F13+COUNTRY_INFO!G13,0) -> 14269 | F13: 39953.2 | G13: 8558 | H13: 31395.2 | I13: 80
A14: =IF(AND(INTRO!$E$37="Endemic",INTRO!$E$39="Non-endemic"),IF(COUNTRY_INFO!A14=0," ",COUNTRY_INFO!A14)," ") -> STP | B14: =IF(AND(INTRO!$E$37="Endemic",INTRO!$E$39="Non-endemic"),IF(COUNTRY_INFO!B14=0," ",COUNTRY_INFO!B14)," ") -> Sao Tome | C14: =IF(AND(INTRO!$E$37="Endemic",INTRO!$E$39="Non-endemic"),IF(COUNTRY_INFO!C14=0," ",COUNTRY_INFO!C14)," ") -> Cauè | D14: =IF(COUNTRY_INFO!T14<>"",COUNTRY_INFO!P14,0) -> 1 | E14: =IF(AND(COUNTRY_INFO!T14<>"",COUNTRY_INFO!$H14=1),COUNTRY_INFO!F14+COUNTRY_INFO!G14,0) -> 6360 | F14: 17808 | G14: 73 | H14: 17735 | I14: 36
A15: =IF(AND(INTRO!$E$37="Endemic",INTRO!$E$39="Non-endemic"),IF(COUNTRY_INFO!A15=0," ",COUNTRY_INFO!A15)," ") -> STP | B15: =IF(AND(INTRO!$E$37="Endemic",INTRO!$E$39="Non-endemic"),IF(COUNTRY_INFO!B15=0," ",COUNTRY_INFO!B15)," ") -> Principe | C15: =IF(AND(INTRO!$E$37="Endemic",INTRO!$E$39="Non-endemic"),IF(COUNTRY_INFO!C15=0," ",COUNTRY_INFO!C15)," ") -> Píncipe | D15: =IF(COUNTRY_INFO!T15<>"",COUNTRY_INFO!P15,0) -> 1 | E15: =IF(AND(COUNTRY_INFO!T15<>"",COUNTRY_INFO!$H15=1),COUNTRY_INFO!F15+COUNTRY_INFO!G15,0) -> 7408 | F15: 20742.4 | G15: 2543 | H15: 18199.4 | I15: 42

Sheet SUMMARY
B2: Joint request for selected PC medicines v.3
B4: This form constitutes an official government request to WHO for the supply of the PC medicines. It can be submitted any time before 15 August of the current year for distribution of medicines during the following year, but at least 6-8 months before the planned PC intervention(s) to allow time for reviewing and approval of the request, placing order, manufacturing PC medicines and shipment to the country.
B6: Country | C6: =IF(INTRO!$E$33<>0,INTRO!$E$33," ") -> STP | G6: Year | H6: =IF(INTRO!$E$35<>0,INTRO!$E$35," ") -> 2020
B8: Information on PC medicines requested to WHO
B10: PC medicine | C10: Number of tablets | G10: Total number of bottles
C11: Required | D11: In stock | E11: In pipeline | F11: Requested | G11: Required | H11: Requested
B12: Diethylcarbamazine citrate | C12: 508775 | D12: 108199 | F12: =IF(C12>(D12+E12),C12-D12-E12, 0) -> 400576 | G12: =IF($C12=0,0, IF($B12="Albendazole for LF", IF($C12=ALB_MBD!$I$4,ALB_MBD!$U$4,ROUNDUP($C12/200,0)), IF($B12="Albendazole for STH (SAC)", IF($C12=ALB_MBD!$L$4,ALB_MBD!$X$4,ROUNDUP($C12/200,0)), IF($B12="Mebendazole (SAC)", IF($C12=ALB_MBD!$P$4,ALB_MBD!$AA$4,ROUNDUP($C12/150,0)), IF($B12="Diethylcarbamazine citrate", IF($C12=DEC!$J$4,DEC!$M$4,ROUNDUP($C12/1000,0)), IF($B12="Praziquantel (SAC)", IF($C12=PZQ!$O$4,PZQ!$R$4,ROUNDUP($C12/1000,0)), IF($B12="Ivermectin", IF($C12=IVM!$N$4,IVM!$Q$4,$C12/500+0.49),0))))))) -> 512 | H12: =IF($F12=0,0,IF(OR($B12="Albendazole for LF",$B12="Albendazole for STH (SAC)"),$G12-ROUNDUP(($E12+$D12)/200,0),IF($B12="Ivermectin",$G12-ROUNDUP(($E12+$D12)/500,0),IF($B12="Mebendazole (SAC)",$G12-ROUNDUP(($E12+$D12)/150,0),$G12-ROUNDUP(($E12+$D12)/1000,0))))) -> 403
B13: Albendazole for LF | C13: 203510 | D13: 0 | F13: 203510 | G13: =IF($C13=0,0, IF($B13="Albendazole for LF", IF($C13=ALB_MBD!$I$4,ALB_MBD!$U$4,ROUNDUP($C13/200,0)), IF($B13="Albendazole for STH (SAC)", IF($C13=ALB_MBD!$L$4,ALB_MBD!$X$4,ROUNDUP($C13/200,0)), IF($B13="Mebendazole (SAC)", IF($C13=ALB_MBD!$P$4,ALB_MBD!$AA$4,ROUNDUP($C13/150,0)), IF($B13="Diethylcarbamazine citrate", IF($C13=DEC!$J$4,DEC!$M$4,ROUNDUP($C13/1000,0)), IF($B13="Praziquantel (SAC)", IF($C13=PZQ!$O$4,PZQ!$R$4,ROUNDUP($C13/1000,0)), IF($B13="Ivermectin", IF($C13=IVM!$N$4,IVM!$Q$4,$C13/500+0.49),0))))))) -> 1020 | H13: 1020
B14: Albendazole for STH (SAC) | C14: 55082 | D14: 47511 | F14: 7571 | G14: =IF($C14=0,0, IF($B14="Albendazole for LF", IF($C14=ALB_MBD!$I$4,ALB_MBD!$U$4,ROUNDUP($C14/200,0)), IF($B14="Albendazole for STH (SAC)", IF($C14=ALB_MBD!$L$4,ALB_MBD!$X$4,ROUNDUP($C14/200,0)), IF($B14="Mebendazole (SAC)", IF($C14=ALB_MBD!$P$4,ALB_MBD!$AA$4,ROUNDUP($C14/150,0)), IF($B14="Diethylcarbamazine citrate", IF($C14=DEC!$J$4,DEC!$M$4,ROUNDUP($C14/1000,0)), IF($B14="Praziquantel (SAC)", IF($C14=PZQ!$O$4,PZQ!$R$4,ROUNDUP($C14/1000,0)), IF($B14="Ivermectin", IF($C14=IVM!$N$4,IVM!$Q$4,$C14/500+0.49),0))))))) -> 279 | H14: 41
B15: Mebendazole (SAC) | C15: 0 | D15: 66312 | F15: 0 | G15: =IF($C15=0,0, IF($B15="Albendazole for LF", IF($C15=ALB_MBD!$I$4,ALB_MBD!$U$4,ROUNDUP($C15/200,0)), IF($B15="Albendazole for STH (SAC)", IF($C15=ALB_MBD!$L$4,ALB_MBD!$X$4,ROUNDUP($C15/200,0)), IF($B15="Mebendazole (SAC)", IF($C15=ALB_MBD!$P$4,ALB_MBD!$AA$4,ROUNDUP($C15/150,0)), IF($B15="Diethylcarbamazine citrate", IF($C15=DEC!$J$4,DEC!$M$4,ROUNDUP($C15/1000,0)), IF($B15="Praziquantel (SAC)", IF($C15=PZQ!$O$4,PZQ!$R$4,ROUNDUP($C15/1000,0)), IF($B15="Ivermectin", IF($C15=IVM!$N$4,IVM!$Q$4,$C15/500+0.49),0))))))) -> 0 | H15: 0
B16: Praziquantel (SAC) | C16: 16575.075 | D16: 53101 | F16: 0 | G16: =IF($C16=0,0, IF($B16="Albendazole for LF", IF($C16=ALB_MBD!$I$4,ALB_MBD!$U$4,ROUNDUP($C16/200,0)), IF($B16="Albendazole for STH (SAC)", IF($C16=ALB_MBD!$L$4,ALB_MBD!$X$4,ROUNDUP($C16/200,0)), IF($B16="Mebendazole (SAC)", IF($C16=ALB_MBD!$P$4,ALB_MBD!$AA$4,ROUNDUP($C16/150,0)), IF($B16="Diethylcarbamazine citrate", IF($C16=DEC!$J$4,DEC!$M$4,ROUNDUP($C16/1000,0)), IF($B16="Praziquantel (SAC)", IF($C16=PZQ!$O$4,PZQ!$R$4,ROUNDUP($C16/1000,0)), IF($B16="Ivermectin", IF($C16=IVM!$N$4,IVM!$Q$4,$C16/500+0.49),0))))))) -> 19 | H16: 0
B17: Ivermectin | C17: 497422.8 | D17: 53761 | F17: 443661.8 | G17: =IF($C17=0,0, IF($B17="Albendazole for LF", IF($C17=ALB_MBD!$I$4,ALB_MBD!$U$4,ROUNDUP($C17/200,0)), IF($B17="Albendazole for STH (SAC)", IF($C17=ALB_MBD!$L$4,ALB_MBD!$X$4,ROUNDUP($C17/200,0)), IF($B17="Mebendazole (SAC)", IF($C17=ALB_MBD!$P$4,ALB_MBD!$AA$4,ROUNDUP($C17/150,0)), IF($B17="Diethylcarbamazine citrate", IF($C17=DEC!$J$4,DEC!$M$4,ROUNDUP($C17/1000,0)), IF($B17="Praziquantel (SAC)", IF($C17=PZQ!$O$4,PZQ!$R$4,ROUNDUP($C17/1000,0)), IF($B17="Ivermectin", IF($C17=IVM!$N$4,IVM!$Q$4,$C17/500+0.49),0))))))) -> 995.3356 | H17: 887.3356
B19: Number of people to be treated with donated medicine ( see User Guide for details )
B21: Disease | G21: Round 1 | H21: Round 2
B22: Lymphatic filariasis | C22: These figures are estimated only for targeted age groups to be treated with donated medicines in areas where treatment for specific disease is required | G22: 203510
B23: Soil-transmitted helminthiases | G23: 80941 | H23: 55082
B24: Schistosomiasis | G24: 6630.03
B29: Information on planned PC interventions
B31: PC medicine | C31: Planned date of the 1st round of PC | E31: Planned date of the 2nd round of PC | G31: Date by which the medicine should arrive to the national warehouse
B32: Diethylcarbamazine citrate | D32: 2020 | H32: 2019
B33: Albendazole for LF | D33: 2020 | H33: 2019
B34: Mebendazole | D34: 2020 | F34: 2020 | H34: 2019
B35: Praziquantel | D35: 2020 | F35: 2020 | H35: 2019
B36: Ivermectin | D36: 2020 | H36: 2019
D37: 2020 | H37: 2019
B39: Information on PC medicines for treatment of population not targeted with current donation through WHO
B41: PC medicine | C41: Age group | D41: # of people | E41: # of tablets | F41: Specify source | H41: Status
B53: Checklist
B54: Submission
B55: What should be submitted?
B56: The supply of the requested medicines should be based on up-to-date epidemiological data, specific usage plans, and capacity for implementation. The following checklist ensures that all necessary forms and information are provided to WHO (in electronic format).
B57: Joint request for selected PC medicines
B58: Joint reporting form
B59: PC epidemiological data reporting form
B61: Availability of funding for implementation in the year for which the medicines are requested
B63: Diseases targeted for implementation | C63: Total treatments | D63: Funding secured for | E63: Source | H63: Amount
B64: =B22 -> Lymphatic filariasis | C64: =SUM(G22:H22) -> 203510
B65: =B23 -> Soil-transmitted helminthiases | C65: =SUM(G23:H23) -> 136023
B66: =B24 -> Schistosomiasis | C66: =SUM(G24:H24) -> 6630.03
B67: =B25 -> 0 | C67: =SUM(G25:H25) -> 0
B69: Who should fill in the form?
B70: National NTD coordinator should compile all required information needed to complete the request form. In the absence of such a coordinator, specific programme managers should coordinate their respective part. The final single request must be approved by the Ministry of Health.
B72: Information on person(s) who has filled in the form
B74: Title | C74: Name | E74: Phone | G74: Email | H74: Date
B75: NTD/PC Coordinator | C75: Alzira S. Silva do Rosario | E75: +239 9903627 | G75: rosarioalzira@gmail.com | H75: 2019-08-07
B80: The WHO recommends that all serious adverse events suspected to be associated with use of PC medicines should be reported in accordance with national Pharmacovigilance guidelines. In the absence of a national Pharmacovigilance system, contact the WHO Neglected Tropical Disease department for guidance.
B81: The WHO is committed to facilitate PC medicines donation with a free-of-charge supply of a) albendazole, mebendazole and praziquantel to the MoH’s national warehouse; and b) diethylcarbamazine citrate to the entry port/airport of recipient countries.
B82: The institution submitting the present request is responsible for a) arranging the offloading of the medicines from the truck and storing it in the national warehouse and subsequent shipment to the final distribution centres; b) for registering the donated medicine, if required, by the relevant national regulatory authorities; and c) for informing about any changes of their PC campaigns (e.g. postpone of the planned MDA date, replacement of NTD coordinator, etc.).
B83: Name and signature of NTD coordinator or Ministry of Health representative
B84: Date: | D84: 2019-08-07
B86: Please complete information on shipment and consignee in the worksheet SHIPMENT. Any additional details related to this Request should be provided in the "Additional information" box in the worksheet SHIPMENT.
B87: Please send the national request (signed and in electronic format) to the concerned WR with copy to:
B88: WHO headquarters | C88: PC_JointForms@who.int
B89: WHO Regional Office | C89: Regional Advisor for NTD
B90: Mectizan donation program | C90: Dr Yao Sodahlon, email: ysodahlon@taskforce.org
B92: Please note that your request will be reviewed by an independent panel before approval. The information in this form, joint reporting form and PC epidemiological data reporting form are essential for WHO to ensure efficient usage of medicines. As part of its ongoing monitoring and evaluation activities, and to meet its contractual obligations to donors and other partners, WHO and its appointed agents reserve the right to periodically inspect stocks of the medicines at country level.

Sheet SHIPMENT
B2: Joint request for selected PC medicines v.3
B4: Country | C4: =IF(INTRO!$E$33<>0,INTRO!$E$33," ") -> STP | G4: Year | H4: =IF(INTRO!$E$35<>0,INTRO!$E$35," ") -> 2020
B6: Information on shipment and consignee
C8: Consignee | F8: Delivery point / Final recipient if different from the consignee
B9: Name | C9: ANCIA, DR. Anne | F9: Dra. Alzira S. Silva do Rosario
B10: Department/Unit | C10: Répresentant OMS à São Tome e Príncipe | F10: Coordonnateur
B11: Organization | C11: OMS- STP | F11: Programme Nattional de la Lute MTN
B12: Phone | C12: 00239 - 2223447 | F12: 00239 - 2221099
B13: Fax | C13: 00239 - 2221766
B14: E-mail | C14: afwcost@who.int | F14: rosarioalzira@gmail.com
B15: Mailing address | C15: 287 STP | F15: 23
C17: Consignee | F17: Delivery point / Final recipient if different from the consignee
B18: Name
B19: Department/Unit
B20: Organization
B21: Phone
B22: Fax
B23: E-mail
B24: Mailing address
C26: Consignee | F26: Delivery point / Final recipient if different from the consignee
B27: Name
B28: Department/Unit
B29: Organization
B30: Phone
B31: Fax
B32: E-mail
B33: Mailing address
B36: Information on import requirements
B38: Is the Import Permit required?
B39: How long does it take to obtain the Import Permit?
B40: Do you require any documents to be submitted together with the Import Permit application?
B41: If YES, please specify here
B42: Does the consignee have to get customs clearance before the shipment can proceed?
B43: Is there any additional information may be helpful in ensuring timely clearance and delivery of medicines to your country?
B44: If YES, please specify here
B46: Additional information
B48: Prévision de traitement de masse (MDA) à São Tome e Príncipe pour 2020: (i)-MDA contre la Filariose lymphatique: mars 2020 (ii)-MDA contre les géohelmentiases et la shistosomiase: octobre 2019
